Cogmind - Beta 13 @@@ ROGUE MODE // 2024.04.19 @ 02:10:24 Player: puppuppit Result: Destroyed by B-99 Colossus with Multirail Performance ------------- Evolutions (9) 4500 Regions Visited (33) 6600 Robots Destroyed (531) 2655 Value Destroyed (23013) 23013 Prototype IDs (85) 1700 Alien Tech Used (2) 400 Bonus (19330) 19330 TOTAL SCORE: 58198 Bonus ------- Triggered High Security 2000 Triggered Max Security 1000 High Alert Combat Kills 8136 Follower Combat Kills 4760 Entered Garrisons 600 Aligned with FarCom 300 Met Data Miner 300 Met Imprinter 300 Acquired ECA 300 Met Zhirov 300 Acquired SGEMP 2000 Delivered SGEMP 2000 Friendly Fire -2666 Cogmind --------- Core Integrity 0/1600 Matter 300/300 Energy 75/100 System Corruption 14% Temperature Cool (0) Movement Core (50) Location -1/Access Parts ------- > --- POWER (2) -------- (None) > --- PROPULSION (8) --- (None) > --- UTILITY (13) ----- Experimental Optical Array Improved Armor Integrity Analyzer System Shield > --- WEAPON (2) ------- (None) > --- INVENTORY (5) ---- Quantum Reactor Antigrav Array Improved Force Field Long-range Proton Cannon Peak State ------------ > --- POWER ------------ Particle Reactor Quantum Reactor > --- PROPULSION ------- Gravmag Array Gravmag Array Gravmag Array Gravmag Array > --- UTILITY ---------- Experimental Matter Compressor Experimental Optical Array Advanced Signal Interpreter 0b10 Decoder Chip [Generic] Advanced Melee Analysis Suite Transmission Jammer Advanced Reaction Control System Advanced Shield Generator Improved Force Field System Shield Improved System Shield > --- WEAPON ----------- Compact Mass Driver Fusion Bomb Launcher > --- INVENTORY -------- Micro Fission Core Q-thruster Fusion Bomb Launcher SGEMP Prototype [Rating: 142] Favorites ----------- Power Micro Nuclear Core Engine Cooled Ion Engine Power Core Micro Nuclear Core Reactor Micro Antimatter Reactor Propulsion Cooled Aerolev Unit Leg Aluminum Leg Wheel Wheel Hover Unit Cooled Aerolev Unit Flight Unit Cooled Nuclear Pulse Thruster Utility Experimental Hacking Suite Device Advanced Weight Redist. System Storage Medium Storage Unit Processor Advanced Targeting Computer Hackware Experimental Hacking Suite Protection Powered Armor Weapon Heavy Linear Accelerator Energy Gun EM Pulse Gun Energy Cannon Ion Cannon Ballistic Gun Enhanced Autogun Ballistic Cannon Heavy Linear Accelerator Launcher Micro-nuke Launcher Impact Weapon Heavy Mace Slashing Weapon Scythe Special Melee Weapon Advanced Datajack Build | -11 -10 -10 -9 -9 -9 -8 -8 -8 -7 -7 -7 -7 -7 -7 -6 -6 -6 -6 -6 -6 -6 -5 -5 -5 -5 -5 -4 -4 -4 -3 -3 -2 -1 ------- Run | Yrd Mat Min Mat Min Exi Min Mat Sto Fac Gar Fac Low Low Zio Pro Fac Gar Fac Low Low Dat Pro Fac Upp Upp Zhi Pro Fac Gar Res Tes Res Acc Slots Evolved 18 | . . . 2 . . . 2 . 2 . . . . . . 2 . . . . . . 2 . . . . 2 . 2 . 2 2 Power 1 | . . . . . . . . . . . . . . . . . . . . . . . . . . . . . . 1 . . . Propulsion 6 | . . . 2 . . . . . . . . . . . . 1 . . . . . . . . . . . . . 1 . 2 . Utility 11 | . . . . . . . 2 . 2 . . . . . . 1 . . . . . . 2 . . . . 2 . . . . 2 Weapon . | . . . . . . . . . . . . . . . . . . . . . . . . . . . . . . . . . . Parts Attached 557 | 8 11 6 8 8 4 1 7 14 19 35 11 3 3 18 5 89 26 31 10 3 . 8 63 5 2 10 3 34 24 30 10 26 22 Power 48 | 1 1 2 1 . . . 2 1 . 4 2 1 1 . . 6 2 1 . . . . 4 1 . 3 . 3 1 3 . 4 4 Engine 17 | 1 1 1 . . . . 2 1 . 4 . . . . . 5 1 . . . . . . . . . . . . . . 1 . Core 16 | . . 1 1 . . . . . . . 2 1 1 . . 1 . . . . . . 2 1 . 2 . 1 . . . 1 2 Reactor 15 | . . . . . . . . . . . . . . . . . 1 1 . . . . 2 . . 1 . 2 1 3 . 2 2 Propulsion 114 | 3 4 1 3 6 1 . . 2 . 6 3 1 . 3 . 31 3 7 2 . . . 6 . 1 3 . 4 2 8 1 5 8 Treads . | . . . . . . . . . . . . . . . . . . . . . . . . . . . . . . . . . . Leg 21 | . . . . . . . . . . 4 3 1 . 2 . 9 . . . . . . . . . . . . . 2 . . . Wheel 8 | 3 4 . 1 . . . . . . . . . . . . . . . . . . . . . . . . . . . . . . Hover 49 | . . 1 2 . . . . . . 2 . . . 1 . 17 3 7 2 . . . 6 . . . . 1 . 1 . 5 1 Flight 36 | . . . . 6 1 . . 2 . . . . . . . 5 . . . . . . . . 1 3 . 3 2 5 1 . 7 Utility 217 | 2 1 2 . 2 3 . 3 6 11 15 5 1 1 15 1 25 10 11 5 2 . 3 30 2 1 4 3 19 5 13 5 10 1 Device 107 | 1 1 1 . 1 1 . 2 4 5 6 2 . 1 5 . 17 5 7 1 . . . 17 . 1 2 1 9 2 5 5 5 . Storage 18 | 1 . 1 . 1 2 . . . 1 . . . . 1 . 2 . 1 1 . . . 3 1 . . . 2 . . . 1 . Processor 31 | . . . . . . . 1 . 2 2 1 . . 6 . 3 . . 2 . . 1 3 . . . 1 3 . 3 . 2 1 Hackware 17 | . . . . . . . . . 2 . . . . 2 . 1 . 1 . . . . 3 . . . . 3 2 1 . 2 . Protection 44 | . . . . . . . . 2 1 7 2 1 . 1 1 2 5 2 1 2 . 2 4 1 . 2 1 2 1 4 . . . Artifact . | . . . . . . . . . . . . . . . . . . . . . . . . . . . . . . . . . . Weapon 178 | 2 5 1 4 . . 1 2 5 8 10 1 . 1 . 4 27 11 12 3 1 . 5 23 2 . . . 8 16 6 4 7 9 Energy Gun 7 | 2 2 . . . . . . . . . . . . . . 1 . . . . . . . . . . . . . . . . 2 Energy Cannon 3 | . . . . . . . . . . . . . . . . . . 1 . . . 1 . . . . . . . . . . 1 Ballistic Gun 34 | . 3 . 4 . . . 1 4 4 6 1 . . . . 10 . 1 . . . . . . . . . . . . . . . Ballistic Cannon 61 | . . . . . . . 1 . . 2 . . 1 . 2 8 5 3 2 1 . 2 13 1 . . . 4 6 3 . 4 3 Launcher 67 | . . 1 . . . . . 1 4 2 . . . . 2 8 6 7 1 . . 2 8 1 . . . 3 8 3 4 3 3 Special Weapon . | . . . . . . . . . . . . . . . . . . . . . . . . . . . . . . . . . . Impact Weapon 1 | . . . . . . . . . . . . . . . . . . . . . . . 1 . . . . . . . . . . Slashing Weapon 2 | . . . . . . 1 . . . . . . . . . . . . . . . . 1 . . . . . . . . . . Piercing Weapon . | . . . . . . . . . . . . . . . . . . . . . . . . . . . . . . . . . . Special Melee Weapon 3 | . . . . . . . . . . . . . . . . . . . . . . . . . . . . 1 2 . . . . Unidentified Prototypes 30 | . . . 1 . . . 1 2 . . . . . 8 . 2 . . . . . 1 7 . . 5 . 1 . . . 2 . Parts Lost 91 | . 1 2 2 1 . . . . 3 3 . . . . . 14 . 7 2 . . . 10 1 . . . 1 3 8 12 1 20 Power 12 | . 1 . 1 . . . . . . . . . . . . 3 . . . . . . 3 . . . . 1 . . . 1 2 Propulsion 33 | . . 1 1 1 . . . . . 1 . . . . . 7 . 1 1 . . . 3 1 . . . . . 4 5 . 7 Utility 35 | . . 1 . . . . . . 2 2 . . . . . 3 . 4 . . . . 3 . . . . . 3 3 7 . 7 Weapon 11 | . . . . . . . . . 1 . . . . . . 1 . 2 1 . . . 1 . . . . . . 1 . . 4 Highest Loss Streak 13 | . 1 1 1 1 . . . . 1 2 . . . . . 6 . 3 2 . . . 3 1 . . . 1 2 5 6 1 13 To Critical Strikes . | . . . . . . . . . . . . . . . . . . . . . . . . . . . . . . . . . . Average Slot Usage (%) 86 | . 98 86 69 99 55 53 66 71 75 81 99 100 92 91 91 88 82 78 96 99 100 98 97 94 97 96 94 95 77 81 61 64 52 Engine 2 | . 14 11 1 . . . 8 9 7 7 . . . . . 3 3 . . . . . . . . . . . . . . . . Core 2 | . . 2 1 11 11 11 . . . . 6 7 7 7 7 1 . . . . . . . 5 5 4 5 3 . . . 1 . Reactor 1 | . . . . . . . . . . . . . . . . . 2 6 6 6 6 6 4 . . . . 1 5 4 3 4 2 Leg 6 | . . . . . . . . . . 9 30 30 30 26 23 9 . . . . . . . . . . . . . . . . . Wheel 1 | . 28 16 15 9 . . . . . . . . . . . . . . . . . . . . . . . . . . . . . Hover 10 | . . 10 8 7 . . . . . . . . . 3 7 13 23 21 31 33 33 33 28 23 23 14 5 3 . 1 2 13 2 Flight 4 | . . . . 26 19 11 9 9 7 3 . . . . . 5 . . . . . . . . 3 13 23 19 15 16 13 . 9 Device 8 | . 14 12 11 11 11 11 17 18 15 6 . . 6 8 7 10 12 11 1 6 6 1 7 5 8 7 3 3 1 2 3 11 11 Storage 6 | . 14 14 11 11 11 11 9 9 7 7 7 7 7 7 7 6 6 6 6 6 6 6 5 5 5 5 5 5 5 2 . 2 1 Processor 12 | . . . . . . . 5 3 7 12 20 23 23 13 7 15 16 10 11 13 13 16 14 12 7 5 9 14 10 13 18 15 14 Hackware 11 | . . . . . . . . . 14 7 7 7 7 9 15 10 6 7 13 13 13 13 19 23 23 23 23 30 27 22 10 5 7 Protection 3 | . . . . . . . . 3 . 9 8 7 . 4 7 . 3 4 11 5 6 5 1 3 5 7 8 1 4 5 6 . . Ballistic Gun 3 | . 12 3 19 22 2 . 4 15 14 9 7 7 . . . 3 . . 6 5 . . . . . . . . . . . . . Ballistic Cannon 3 | . . . . . . . 3 . . . . . 6 7 6 4 5 3 4 6 13 9 6 5 5 2 . 2 2 1 . 3 2 Launcher 2 | . . 11 . . . . . . . 4 7 7 . . . . . 1 . . . 2 2 4 5 5 5 2 2 2 . 3 . Naked Turns . | . . . . . . . . . . . . . . . . . . . . . . . . . . . . . . . . . . Heaviest Build 80 | 13 14 16 16 16 25 27 38 47 46 60 50 50 58 58 53 54 71 70 40 37 37 49 58 38 42 46 24 30 33 57 33 80 80 Greatest Support 85 | 26 20 20 20 26 56 56 56 50 50 50 50 60 60 64 55 85 77 77 58 58 58 58 69 46 46 46 24 32 32 40 34 80 80 Greatest Overweight (x) 3 | . 1 1 1 1 . . . . . 3 . . . 2 . 3 1 1 . . . . 1 . . 1 . . 1 2 . . 2 Average Overweight (x) . | . . . . . . . . . . . . . . . . . . . . . . . . . . . . . . . . . . Largest Inventory Capacity 15 | 8 8 8 8 8 15 15 15 15 15 15 15 15 15 15 10 10 10 10 10 10 10 10 10 10 10 10 10 10 10 10 5 5 5 Average Capacity 10 | 7 8 8 8 8 9 15 15 15 15 15 15 15 15 11 10 10 10 10 10 10 10 10 10 10 10 10 10 10 10 8 5 5 5 Most Carried 15 | 6 8 8 8 8 9 10 15 15 15 15 15 15 15 15 10 10 10 10 10 10 10 10 10 10 10 10 10 10 10 10 5 5 5 Average Carried 10 | 2 7 7 7 7 8 9 13 14 14 14 14 15 14 11 9 9 9 9 9 9 10 9 9 9 9 9 9 9 9 7 4 4 3 Final Capacity 15 | 8 8 8 8 8 15 15 15 15 15 15 15 15 15 10 10 10 10 10 10 10 10 10 10 10 10 10 10 10 10 5 5 5 5 Final Carried 15 | 6 8 8 8 8 9 10 15 15 15 15 15 15 15 10 10 10 10 9 9 10 10 10 8 10 10 10 10 10 10 5 5 5 5 Class Distribution -------------------- 36% | Hacker-Mutant 26% | Mutant 14% | Scavenger-Mutant 7% | Wizard-Sprinter 6% | Commander-Mutant Dominant Class ---------------- Mutant | -10/Materials Scavenger-Mutant | -10/Mines Mutant | -9/Materials Scavenger-Sprinter | -9/Mines Mutant | -9/Exiles Mutant | -8/Mines Scout | -8/Materials Commander-Mutant | -8/Storage Hacker-Mutant | -7/Factory Mutant | -7/Garrison Scavenger-Mutant | -7/Factory Scavenger-Mutant | -7/Lower Caves Scavenger-Mutant | -7/Lower Caves Mutant | -7/Zion Hacker-Mutant | -6/Proximity Caves Hacker-Mutant | -6/Factory Mutant | -6/Garrison Commander-Mutant | -6/Factory Hacker-Mutant | -6/Lower Caves Hacker-Mutant | -6/Lower Caves Hacker-Mutant | -6/Data Miner Hacker-Mutant | -5/Proximity Caves Hacker-Mutant | -5/Factory Hacker-Mutant | -5/Upper Caves Hacker-Mutant | -5/Upper Caves Hacker-Sprinter | -5/Zhirov Hacker-Sprinter | -4/Proximity Caves Wizard-Sprinter | -4/Factory Wizard-Sprinter | -4/Garrison Commander-Sprinter | -3/Research Hacker-Sprinter | -3/Testing Hacker-Mutant | -2/Research Hacker-Mutant | -1/Access Resources | -11 -10 -10 -9 -9 -9 -8 -8 -8 -7 -7 -7 -7 -7 -7 -6 -6 -6 -6 -6 -6 -6 -5 -5 -5 -5 -5 -4 -4 -4 -3 -3 -2 -1 ----------- Run | Yrd Mat Min Mat Min Exi Min Mat Sto Fac Gar Fac Low Low Zio Pro Fac Gar Fac Low Low Dat Pro Fac Upp Upp Zhi Pro Fac Gar Res Tes Res Acc Matter Collected 22444 | 280 292 268 231 263 . 33 240 935 574 1770 232 25 310 115 569 3044 1868 942 273 226 . 582 3799 456 306 . 200 607 1845 1120 . 550 489 Remotely 2574 | 208 292 50 . . . . . . . . . . . . . 1037 839 . . . . . . . . . . . . 148 . . . Salvage Created 15861 | 159 407 221 551 283 . . 140 995 1197 803 218 . 102 . 328 2465 797 937 93 32 . 529 2556 72 56 . . 536 456 636 . 888 404 Parts 767 | 14 32 14 28 35 . . 9 52 78 30 17 . 4 . 13 96 31 35 3 2 . 18 111 7 8 . . 43 14 20 . 34 19 Haulers Intercepted 23 | . 1 . 1 . . . 1 5 . . . . . . . 5 . 1 . . . . 6 . . . . 2 . . . 1 . Recyclers Shooed 27 | . 2 . 4 1 . . . . 4 . . . . . . 8 . . . . . . 6 . . . . . . . . . 2 Parts Field Recycled . | . . . . . . . . . . . . . . . . . . . . . . . . . . . . . . . . . . Retrieved Matter . | . . . . . . . . . . . . . . . . . . . . . . . . . . . . . . . . . . Parts Self-Destructed 64 | . . . . . . . . . . . . . 4 1 9 . . . 5 7 . 26 . 5 7 . . . . . . . . Prevented 2 | . . . . . . . . . . . . . . . . . . . . . . . . . . . 2 . . . . . . Kills | -11 -10 -10 -9 -9 -9 -8 -8 -8 -7 -7 -7 -7 -7 -7 -6 -6 -6 -6 -6 -6 -6 -5 -5 -5 -5 -5 -4 -4 -4 -3 -3 -2 -1 ------- Run | Yrd Mat Min Mat Min Exi Min Mat Sto Fac Gar Fac Low Low Zio Pro Fac Gar Fac Low Low Dat Pro Fac Upp Upp Zhi Pro Fac Gar Res Tes Res Acc Combat Hostiles Destroyed 345 | . 4 17 3 9 . . 1 16 19 22 9 . 3 . 13 26 31 20 2 2 . 16 54 6 5 . . 20 20 10 . 11 6 Melee 2 | . . . . . . . 1 1 . . . . . . . . . . . . . . . . . . . . . . . . . Guns 66 | . 4 4 3 9 . . . 10 12 14 . . . . . 7 . . 1 1 . . . . . . . . . . . . 1 Cannons 67 | . . . . . . . . . . 2 . . 1 . 9 10 15 3 1 1 . 5 13 1 . . . . 2 . . 3 1 AOE 209 | . . 13 . . . . . 5 7 6 9 . 2 . 4 9 15 17 . . . 11 41 5 5 . . 20 18 10 . 8 4 Classes Destroyed 24 | 2 5 1 2 1 . . . 1 3 . 1 . 1 . . . . 3 . . . . 1 . . . . . 1 1 . 1 . Worker 50 | . 1 . . 1 . . . 1 3 . 2 . . . . 11 . . . . . . 18 . . . . 2 . 4 . 5 2 Builder 29 | . 2 . 1 2 . . . 2 8 . . . . . . 3 . 4 . . . . 3 . . . . 3 . 1 . . . Tunneler 13 | 5 . . . 1 . . . . 2 . . . . . . 1 . . . . . . 2 . . . . 1 . 1 . . . Hauler 23 | . 1 . 1 . . . 1 5 . . . . . . . 5 . 1 . . . . 6 . . . . 2 . . . 1 . Recycler 36 | 1 1 . 3 1 . . . . 5 . . . . . . 11 . 2 . . . . 6 . . . . . . 1 . 3 2 Minesweeper 2 | . . . . . . . . . . . . . 1 . . . . . . . . . . . 1 . . . . . . . . Mechanic 5 | . . . . . . . . . . . . . . . . . . 2 . . . . 3 . . . . . . . . . . Operator 11 | . . . 1 . . . . 1 1 . 1 . . . . 1 . 2 . . . . 3 . . . . . . 1 . . . Drone 1 | . . . . . . . . 1 . . . . . . . . . . . . . . . . . . . . . . . . . Watcher 22 | . 1 . 2 . . . 1 . . . . . . . . 6 . 3 . . . . 4 . . . . 4 . . . 1 . Swarmer 83 | . . . . 9 . . . 2 . 2 3 . . . . 4 6 3 . 2 . . 12 5 5 . . 18 7 . . . 5 Cutter 3 | . . . . . . . . . . . . . . . . . . . . . . . . . . . . . . . . 3 . Saboteur 3 | . . . . . . . . . . . . . . . . . . . . . . . 2 . . . . . . . . 1 . Grunt 161 | . 4 6 1 . . . 1 11 11 12 5 . 3 . 9 13 17 14 2 . . 15 21 . . . . . 8 7 . 1 . Brawler 7 | . . . . . . . . . 1 . . . . . 1 1 . . . . . . 1 . . . . . . 1 . 2 . Duelist 8 | . . . . . . . . . . . 1 . . . . . . 1 . . . 1 2 . . . . . 3 . . . . Protector 3 | . . . . . . . . . . . . . . . . . . 1 . . . . 1 . . . . . . 1 . . . Sentry 28 | . . . 2 . . . . 4 2 8 . . . . 1 3 6 . . . . . 1 . . . . . . . . 1 . Demolisher 1 | . . . . . . . . . . . . . . . . . . . . . . . . . . . . . . 1 . . . Specialist 1 | . . . . . . . . . . . . . . . . . . 1 . . . . . . . . . . . . . . . Hunter 11 | . . . . . . . . . 1 . . . . . 1 1 1 . . . . . 5 1 . . . . . 1 . . . Programmer 27 | . . . . . . . . . 4 . . . . . 1 4 1 1 . . . . 9 . . . . 2 1 . . 3 1 Behemoth 2 | . . . . . . . . . . . . . . . . . . . . . . . . . . . . . 2 . . . . Assembled 11 | . . 11 . . . . . . . . . . . . . . . . . . . . . . . . . . . . . . . Thug 1 | . . . . . . . . . . . . . . . . . . 1 . . . . . . . . . . . . . . . Infiltrator 1 | . . . . . . . . . . . . . . . . . . . . . . . 1 . . . . . . . . . . Best Kill Streak 21 | 6 3 5 6 5 . . 3 8 21 3 5 . 2 . 3 7 6 11 2 2 . 5 21 5 5 . . 13 6 6 . 6 8 Combat Bots Only 10 | . 2 5 1 4 . . 1 6 4 3 5 . 2 . 3 6 6 8 2 2 . 5 8 5 5 . . 10 6 4 . 3 5 Max Kills in Single Turn 8 | 2 1 4 1 2 . . 1 3 3 2 3 . 2 . 2 2 2 8 1 1 . 3 4 5 3 . . 6 2 4 . 3 6 Gunslinging 1 | . . 1 . . . . . . . . . . . . . 1 . . . . . . . . . . . . . . . . . Exploded 5 | . . 4 . . . . . 2 1 2 2 . 2 . 2 2 2 5 . . . 3 3 5 3 . . 5 2 3 . 2 4 Melee 1 | . . . . . . . 1 1 . . . . . . . . . . . . . . . . . . . . . . . . . Uniques/NPCs Destroyed . | . . . . . . . . . . . . . . . . . . . . . . . . . . . . . . . . . . Combat | -11 -10 -10 -9 -9 -9 -8 -8 -8 -7 -7 -7 -7 -7 -7 -6 -6 -6 -6 -6 -6 -6 -5 -5 -5 -5 -5 -4 -4 -4 -3 -3 -2 -1 -------- Run | Yrd Mat Min Mat Min Exi Min Mat Sto Fac Gar Fac Low Low Zio Pro Fac Gar Fac Low Low Dat Pro Fac Upp Upp Zhi Pro Fac Gar Res Tes Res Acc Hostile Shots Fired 2017 | . 23 34 19 31 . . 2 42 120 379 6 . 1 . 70 228 148 110 50 18 . 29 149 15 8 . 11 23 30 88 118 55 210 Missed 927 | . 4 12 6 6 . . . 20 64 218 1 . . . 26 90 67 47 18 7 . 15 58 5 4 . 5 10 16 55 60 29 84 Damage Taken 17921 | . 250 414 181 215 . . 28 244 786 1251 87 . 18 . 805 1889 1004 1114 484 146 . 264 1997 211 52 . 149 278 458 726 1545 716 2609 Core 4648 | . 43 169 70 53 . . . . 53 139 . . . . 112 306 130 80 20 34 . 74 475 93 . . 50 . 125 94 771 143 1614 Absorbed by Shields 1064 | . . . . . . . . 95 . 400 . . . . . . 2 15 . . . . . . 11 . . . . 20 . 428 93 Redirected to Shielding 157 | . . . . . . . . . . . . . . . . . . . 21 13 . . . . . . . . 53 70 . . . Ignored by Resistances 6 | . . . . . . . . . . . . . . . . . . . . . . . 6 . . . . . . . . . . Regen/Repaired (Parts) 518 | . 75 . . . . . . . 21 . 50 . . . . 247 . . . . . . 99 . . . . 26 . . . . . Core Remaining (%) 60 | 100 . 15 . . . 69 . 100 . . . . . . 56 . . . . . . 24 . . . . 38 . 89 . 26 90 . Volleys Fired 1163 | 7 32 27 32 32 . . . 73 64 100 17 . 6 2 37 155 89 47 17 4 . 22 179 9 4 . . 29 69 29 5 46 30 Largest 2 | 2 2 2 2 2 . . . 2 2 2 2 . 1 1 1 2 2 1 2 2 . 2 2 2 1 . . 1 2 1 1 2 2 Hottest 140 | 80 63 63 46 46 . . . 55 55 83 77 . 83 83 83 83 101 83 83 83 . 106 140 140 80 . . 80 140 80 52 118 118 Shots Fired 1638 | 14 61 43 56 64 . . . 139 124 174 25 . 6 2 37 207 92 48 34 8 . 41 227 12 5 1 . 29 74 29 5 49 32 Gun 762 | 14 61 26 56 64 . . . 132 104 148 16 . . . . 112 . . 17 4 . . . . . . . . . . . . 8 Cannon 577 | . . . . . . . . . . 7 . . 5 2 33 83 74 24 16 4 . 29 174 10 2 1 . 21 35 11 . 30 16 Launcher 299 | . . 17 . . . . . 7 20 19 9 . 1 . 4 12 18 24 1 . . 12 53 2 3 . . 8 39 18 5 19 8 Special . | . . . . . . . . . . . . . . . . . . . . . . . . . . . . . . . . . . Kinetic 1268 | . 29 16 56 64 . . . 132 104 155 16 . 5 2 33 188 74 24 33 8 . 29 174 10 2 1 . 21 35 11 . 30 16 Thermal 15 | . . . . . . . . . . . . . . . . 7 . . . . . . . . . . . . . . . . 8 Explosive 299 | . . 17 . . . . . 7 20 19 9 . 1 . 4 12 18 24 1 . . 12 53 2 3 . . 8 39 18 5 19 8 Electromagnetic 56 | 14 32 10 . . . . . . . . . . . . . . . . . . . . . . . . . . . . . . . Robot Hit Streak 28 | 6 10 6 9 11 . . . 9 12 21 4 . 6 . 7 17 10 5 5 3 . 7 11 8 3 . . 7 18 19 . 28 13 Robot Miss Streak 11 | 2 4 7 3 4 . . . 7 4 4 2 . 1 . 2 4 2 6 11 8 . 6 3 1 . . . 3 1 2 . 1 5 Penetration Max 1 | . . . . . . . . . . . . . . . . . . . 1 . . . . . . . . . . . . . . Secondary Targets 10 | . 1 1 . . . . . 4 . 3 . . . . . 1 . . . . . . . . . . . . . . . . . Max Gunslinging Chain 1 | . 1 1 . . . . . 1 . 1 . . . . . 1 . . . . . . . . . . . . . . . . . Shots Hit Robots 989 | 8 36 24 35 34 . . 5 84 80 106 14 . 4 . 26 147 37 15 23 3 . 28 139 7 3 . . 34 43 11 . 28 15 Core Hits 976 | 6 17 31 13 14 . . 3 51 77 49 16 . 5 . 12 95 39 63 12 4 . 45 188 7 5 . . 37 62 69 . 35 21 Critical Kills 2 | . . . 1 . . . . . 1 . . . . . . . . . . . . . . . . . . . . . . . . Critical Parts Destroyed 3 | . . . . . . . . . . 1 . . . . . 1 . . . . . . 1 . . . . . . . . . . Critical Strikes 31 | . . . 1 . . . 1 . 1 1 . . 1 . 1 6 3 2 . . . 1 4 . . . . 3 2 . . 3 1 Destroy 4 | . . . 1 . . . . . 1 1 . . . . . 1 . . . . . . . . . . . . . . . . . Blast 25 | . . . . . . . . . . . . . 1 . 1 5 3 2 . . . 1 3 . . . . 3 2 . . 3 1 Smash 1 | . . . . . . . . . . . . . . . . . . . . . . . 1 . . . . . . . . . . Sever 1 | . . . . . . . 1 . . . . . . . . . . . . . . . . . . . . . . . . . . Melee Attacks 47 | . . . . . . . 14 5 . . . . . . . . . . . . . . 7 . . . . 18 3 . . . . Impact 7 | . . . . . . . . . . . . . . . . . . . . . . . 7 . . . . . . . . . . Slashing 19 | . . . . . . . 14 5 . . . . . . . . . . . . . . . . . . . . . . . . . Piercing . | . . . . . . . . . . . . . . . . . . . . . . . . . . . . . . . . . . Sneak Attacks 27 | . . . . . . . 1 2 . . . . . . . . . . . . . . 3 . . . . 18 3 . . . . Combat Hostiles 1 | . . . . . . . . . . . . . . . . . . . . . . . . . . . . . 1 . . . . Follow-up Attacks . | . . . . . . . . . . . . . . . . . . . . . . . . . . . . . . . . . . Damage Inflicted 69915 | 122 529 1167 559 561 . . 212 2420 3040 3222 1437 . 473 . 2461 9569 4574 4664 522 76 . 2346 13916 555 563 . . 2929 5091 4128 12 2853 1914 Guns 9027 | 122 529 237 559 561 . . . 1481 1275 1540 155 . . . . 1995 . . 249 25 . . . . . . . . . . . . 299 Cannons 17739 | . . . . . . . . . . 306 . . 240 . 1617 4641 2434 792 273 51 . 610 4189 191 81 . . 445 575 201 . 836 257 Explosions 42154 | . . 930 . . . . . 768 1765 1376 1282 . 233 . 844 2885 2140 3872 . . . 1736 9277 364 482 . . 2484 4516 3927 . 1953 1320 Melee 833 | . . . . . . . 212 171 . . . . . . . . . . . . . . 450 . . . . . . . . . . Ramming 162 | . . . . . . . . . . . . . . . . 48 . . . . . . . . . . . . . . 12 64 38 Kinetic 25746 | . 216 123 559 561 . . . 1481 1275 1846 155 . 240 . 1617 6464 2434 792 522 76 . 610 4189 191 81 . . 445 575 201 . 836 257 Thermal 1104 | . . 172 . . . . . . 39 . 114 . . . . 172 . . . . . . 146 . . . . 162 . . . . 299 Explosive 40997 | . . 758 . . . . . 768 1490 1376 1168 . 233 . 844 2745 2140 3820 . . . 1736 9035 364 482 . . 2322 4516 3927 . 1953 1320 Electromagnetic 1073 | 122 313 114 . . . . . . 236 . . . . . . 140 . 52 . . . . 96 . . . . . . . . . . Impact 450 | . . . . . . . . . . . . . . . . . . . . . . . 450 . . . . . . . . . . Slashing 383 | . . . . . . . 212 171 . . . . . . . . . . . . . . . . . . . . . . . . . Piercing . | . . . . . . . . . . . . . . . . . . . . . . . . . . . . . . . . . . Highest Corruption 21 | . . . 1 1 1 1 . 2 3 3 . . . . . 3 4 4 . . . . 4 4 4 4 4 . . 3 21 . 14 Average Corruption 2 | . . . 1 1 1 1 . 2 1 1 . . . . . 1 3 3 . . . . 3 4 4 4 3 . . 1 5 . 5 Corruption Purged 12 | . . . . . . . . . 1 3 . . . . . . . 4 . . . . . . . . 4 . . . . . . Corruption Blocked . | . . . . . . . . . . . . . . . . . . . . . . . . . . . . . . . . . . Effects 162 | . . . . 2 3 3 . 7 3 . . . . . . 16 38 16 . . . . 42 10 9 1 3 . . 1 5 . 3 Message Errors 38 | . . . . . . 2 . 1 . . . . . . . 2 9 4 . . . . 14 3 3 . . . . . . . . Matter Fused 36 | . . . . 2 1 1 . 1 . . . . . . . 3 14 1 . . . . 6 3 1 . 1 . . . 1 . 1 Heat Flow Errors 24 | . . . . . . . . 1 3 . . . . . . 6 4 1 . . . . 5 1 1 . . . . 1 . . 1 Energy Discharges 14 | . . . . . . . . 1 . . . . . . . 1 1 2 . . . . 4 2 1 . 1 . . . 1 . . Parts Rejected 2 | . . . . . . . . . . . . . . . . . . . . . . . 2 . . . . . . . . . . Data Loss (minor) 25 | . . . . . 1 . . 1 . . . . . . . 3 4 6 . . . . 4 1 2 . . . . . 3 . . Data Loss (major) 9 | . . . . . 1 . . . . . . . . . . 1 3 1 . . . . 3 . . . . . . . . . . Misfires 5 | . . . . . . . . . . . . . . . . . 1 1 . . . . 1 . 1 1 . . . . . . . Alerts 2 | . . . . . . . . . . . . . . . . . 1 . . . . . . . . . 1 . . . . . . Misdirections 1 | . . . . . . . . . . . . . . . . . . . . . . . . . . . . . . . . . 1 Weapon Failures 6 | . . . . . . . . 2 . . . . . . . . 1 . . . . . 3 . . . . . . . . . . Overload Shots . | . . . . . . . . . . . . . . . . . . . . . . . . . . . . . . . . . . Overflow Damage 3914 | . . 83 . . . . . 30 7 64 85 . 49 . 357 1138 490 295 5 2 . 28 727 2 48 . . 168 200 30 . 83 23 Projectiles 2268 | . . . . . . . . . . 26 . . 46 . 295 1071 417 164 . 2 . . 105 2 32 . . 16 . . . 70 22 Explosions 1432 | . . 83 . . . . . . 7 38 85 . 3 . 62 67 73 131 5 . . 28 439 . 16 . . 152 200 30 . 13 . Melee 214 | . . . . . . . . 30 . . . . . . . . . . . . . . 183 . . . . . . . . . 1 Knockbacks 90 | . . . . . . . . . . 2 . . 1 . 4 17 11 1 8 1 . 6 30 1 . . . 2 3 . . 3 . Impact 4 | . . . . . . . . . . . . . . . . . . . . . . . 4 . . . . . . . . . . Kinetic 81 | . . . . . . . . . . 2 . . 1 . 4 17 9 1 8 1 . 6 23 1 . . . 2 3 . . 3 . Secondary 5 | . . . . . . . . . . . . . . . . . 2 . . . . . 3 . . . . . . . . . . Self-Inflicted Damage 981 | . . 87 . . . . . . 51 73 . . . . . 44 61 147 22 . . . 65 . . . . 29 . 36 53 297 16 Shots 26 | . . 3 . . . . . . 2 3 . . . . . 1 1 4 1 . . . 1 . . . . 1 . 1 1 7 . Rammed 16 | . . . . . . . . . . . . . . . . . . . . . . . . . . . . . . . 3 1 12 Targets Rammed 19 | . . . . . . . . . . . . . . . . 3 . . . . . . . . . . . . . . 3 1 12 Kicked 3 | . . . . . . . . . . . . . . . . 3 . . . . . . . . . . . . . . . . . Crushed . | . . . . . . . . . . . . . . . . . . . . . . . . . . . . . . . . . . Highest Temperature 346 | 110 76 65 . 6 . . . 212 211 281 57 . 85 38 308 346 270 328 277 . . 159 225 138 105 3 . . 5 167 . . 75 Average Temperature 66 | 50 36 25 . 3 . . . 84 47 50 22 . 34 20 86 70 59 102 113 . . 69 56 62 70 3 . . 3 110 . . 31 Received Heat Transfer 3407 | . 159 144 45 . . . 9 108 282 434 45 . 9 . 243 444 240 196 159 15 . 123 363 12 9 . 9 9 75 39 178 46 12 Effects 10 | . . . . . . . . 3 . . . . . . 1 2 . 1 3 . . . . . . . . . . . . . . Energy Bleed 2 | . . . . . . . . . . . . . . . 1 . . 1 . . . . . . . . . . . . . . . Interference 8 | . . . . . . . . 3 . . . . . . . 2 . . 3 . . . . . . . . . . . . . . Siege Activations . | . . . . . . . . . . . . . . . . . . . . . . . . . . . . . . . . . . Robots Corrupted . | . . . . . . . . . . . . . . . . . . . . . . . . . . . . . . . . . . Combat Hostiles . | . . . . . . . . . . . . . . . . . . . . . . . . . . . . . . . . . . Parts Fried 9 | 1 . . . . . . . . . . . . . . . . 1 . . . . . 7 . . . . . . . . . . Impact Corruptions 10 | . . . . . . . . . . . . . . . . . 3 . . . . . 6 . . . . . . . . . 1 Robots Melted . | . . . . . . . . . . . . . . . . . . . . . . . . . . . . . . . . . . Combat Hostiles . | . . . . . . . . . . . . . . . . . . . . . . . . . . . . . . . . . . Parts Melted . | . . . . . . . . . . . . . . . . . . . . . . . . . . . . . . . . . . Heat Transferred 1171 | . . 200 . . . . . . 50 . 50 . . . . 375 . . . . . . 100 . . . . 100 . . . . 296 Parts Sabotaged 4 | . . . . . . . . . . . . . . . . . . 3 . . . . . . . . . . . . 1 . . Parts Stolen . | . . . . . . . . . . . . . . . . . . . . . . . . . . . . . . . . . . Parts Stripped . | . . . . . . . . . . . . . . . . . . . . . . . . . . . . . . . . . . Power Chain Reactions 1 | . . . . . . . . . 1 . . . . . . . . . . . . . . . . . . . . . . . . Alert | -11 -10 -10 -9 -9 -9 -8 -8 -8 -7 -7 -7 -7 -7 -7 -6 -6 -6 -6 -6 -6 -6 -5 -5 -5 -5 -5 -4 -4 -4 -3 -3 -2 -1 ------- Run | Yrd Mat Min Mat Min Exi Min Mat Sto Fac Gar Fac Low Low Zio Pro Fac Gar Fac Low Low Dat Pro Fac Upp Upp Zhi Pro Fac Gar Res Tes Res Acc Peak Influence 3370 | 30 149 278 295 509 . . 119 804 1118 2173 1646 . . . . 1224 2342 2340 . . . . 3370 . . . . 484 2739 3311 2159 2270 1667 Initial 1862 | . 19 57 79 114 . . . 56 365 686 1140 . . . . 81 739 1229 . . . . 290 . . . . . 221 1540 1862 1214 1364 Average 1158 | 14 107 183 177 238 . . 40 456 599 1479 1476 . . . . 591 1754 1864 . . . . 1395 . . . . 173 1862 2309 1988 1564 1604 Maximum Alert Level 5 | . . 1 1 2 . . . 3 4 5 5 . . . . 4 5 5 . . . . 5 . . . . 2 5 5 5 5 5 Low Security (%) 14 | 100 100 43 61 38 . 100 100 31 . . . . . . . 17 . . . . . . . . . . . 44 . . . . . Level 1 11 | . . 56 38 51 . . . 6 30 . . . . . . 13 . . . . . . 15 . . . . 54 2 . . . . Level 2 9 | . . . . 9 . . . 38 35 5 . . . . . 22 . . . . . . 12 . . . . . 9 . . . . Level 3 14 | . . . . . . . . 23 28 27 . . . . . 40 14 . . . . . 19 . . . . . . . . . . Level 4 17 | . . . . . . . . . 5 19 70 . . . . 5 18 23 . . . . 22 . . . . . 21 15 . 58 41 Level 5 25 | . . . . . . . . . . 47 29 . . . . . 66 47 . . . . 16 . . . . . 65 15 . 32 58 High Security 5 | . . . . . . . . . . . . . . . . . . 28 . . . . 14 . . . . . . 68 . 9 . Max Security 1 | . . . . . . . . . . . . . . . . . . . . . . . . . . . . . . . 99 . . Squads Dispatched 125 | . 1 1 3 . . . 2 6 10 . 2 . . . . 17 . 10 . . . 1 24 . . . . 11 . 19 12 4 2 Investigation 36 | . 1 1 2 . . . 2 4 5 . 1 . . . . 10 . 1 . . . . 3 . . . . 3 . 2 . . 1 Extermination 10 | . . . . . . . . . 1 . . . . . . 2 . . . . . . 3 . . . . 2 . . . 1 1 Reinforcement 19 | . . . 1 . . . . 1 3 . . . . . . 2 . 3 . . . . 3 . . . . 4 . 1 . 1 . Assault 55 | . . . . . . . . 1 1 . 1 . . . . . . 6 . . . 1 15 . . . . 1 . 15 12 2 . Garrison 5 | . . . . . . . . . . . . . . . . 3 . . . . . . . . . . . 1 . 1 . . . Intercept . | . . . . . . . . . . . . . . . . . . . . . . . . . . . . . . . . . . Searches Triggered . | . . . . . . . . . . . . . . . . . . . . . . . . . . . . . . . . . . Construction Impeded 5 | . . . . . . . . . 2 . . . . . . 1 . 1 . . . . 1 . . . . . . . . . . Haulers Reinforced 3 | . . . . . . . . . . . . . . . . 1 . 1 . . . . 1 . . . . . . . . . . Active Scanning Responses . | . . . . . . . . . . . . . . . . . . . . . . . . . . . . . . . . . . Cargo Convoy Interrupts 1 | . . . . . . . . . . . . . . . . . . . . . . . 1 . . . . . . . . . . Stealth | -11 -10 -10 -9 -9 -9 -8 -8 -8 -7 -7 -7 -7 -7 -7 -6 -6 -6 -6 -6 -6 -6 -5 -5 -5 -5 -5 -4 -4 -4 -3 -3 -2 -1 --------- Run | Yrd Mat Min Mat Min Exi Min Mat Sto Fac Gar Fac Low Low Zio Pro Fac Gar Fac Low Low Dat Pro Fac Upp Upp Zhi Pro Fac Gar Res Tes Res Acc Distress Signals 25 | . . . 1 . . . 2 3 3 . . . . . . 5 . 1 . . . . 1 . . . . 2 . 2 1 2 2 Communications Jammed 32 | . . . . . . . . . . . . . . . . . . . . . . . 9 . . . . 2 . . . 21 . Distress Signals 22 | . . . . . . . . . . . . . . . . . . . . . . . 9 . . . . . . . . 13 . Times Spotted 770 | . 10 21 7 18 . . 7 43 33 28 13 . 3 . 15 40 41 37 9 5 . 22 108 2 7 . 3 29 43 87 75 36 28 Peak Tracking Total 31 | . 3 4 3 4 . . 7 9 7 5 2 . 3 . 4 5 8 7 5 4 . 5 13 1 3 . 3 10 7 28 31 12 11 Tactical Retreats 47 | . . 1 1 4 . . . . 2 3 . . 1 . 2 2 1 1 2 1 . . 7 . 1 . . 1 . 7 4 5 1 Traps | -11 -10 -10 -9 -9 -9 -8 -8 -8 -7 -7 -7 -7 -7 -7 -6 -6 -6 -6 -6 -6 -6 -5 -5 -5 -5 -5 -4 -4 -4 -3 -3 -2 -1 ------- Run | Yrd Mat Min Mat Min Exi Min Mat Sto Fac Gar Fac Low Low Zio Pro Fac Gar Fac Low Low Dat Pro Fac Upp Upp Zhi Pro Fac Gar Res Tes Res Acc Traps Triggered 18 | . 1 . . . . . 1 1 . 4 2 . . . . . 5 2 . . . . . . . . . 1 . . 1 . . Indirectly 2 | . . . . . . . . . . . . . . . . . . 2 . . . . . . . . . . . . . . . Trap Hack Attempts . | . . . . . . . . . . . . . . . . . . . . . . . . . . . . . . . . . . Triggered . | . . . . . . . . . . . . . . . . . . . . . . . . . . . . . . . . . . Disarmed 5 | . . . . . . . . . . . . . . . . . . . . . . . . . . . . 5 . . . . . Reprogrammed 33 | . . . . . . . . 12 . . . . . . . 10 . . . . . . . . . . . 11 . . . . . Reused 1 | . . . . . . . . . . . . . . . . 1 . . . . . . . . . . . . . . . . . Traps Extracted . | . . . . . . . . . . . . . . . . . . . . . . . . . . . . . . . . . . Installed 16 | . . . . . . . . . . . . . 9 . . . . . . . . . . 2 5 . . . . . . . . Triggered 8 | . . . . . . . . . . . . 2 . . . 1 . . 1 . . . . . 2 . 1 . . . . . 1 Machines | -11 -10 -10 -9 -9 -9 -8 -8 -8 -7 -7 -7 -7 -7 -7 -6 -6 -6 -6 -6 -6 -6 -5 -5 -5 -5 -5 -4 -4 -4 -3 -3 -2 -1 ---------- Run | Yrd Mat Min Mat Min Exi Min Mat Sto Fac Gar Fac Low Low Zio Pro Fac Gar Fac Low Low Dat Pro Fac Upp Upp Zhi Pro Fac Gar Res Tes Res Acc Machines Disabled 188 | . . 5 . . . . . 1 14 11 18 . . . . 44 7 29 . . . . 29 . . 1 . 6 17 3 . 2 1 Max in Single Turn 12 | . . 3 . . . . . 1 12 2 6 . . . . 6 1 9 . . . . 4 . . 1 . 5 2 1 . 1 1 Garrison Access 4 | . . . . . . . . . . . 1 . . . . 1 . . . . . . . . . . . 1 . 1 . . . Garrison Relay 16 | . . . . . . . . . . 4 . . . . . . 7 . . . . . . . . . . . 5 . . . . Phase Generator 2 | . . . . . . . . . . 1 . . . . . . . . . . . . . . . . . . 1 . . . . Energy Cycler 1 | . . . . . . . . . . . . . . . . . . . . . . . . . . . . . . . . . 1 Machines Repaired . | . . . . . . . . . . . . . . . . . . . . . . . . . . . . . . . . . . Machines Dismantled . | . . . . . . . . . . . . . . . . . . . . . . . . . . . . . . . . . . Machines Sabotaged . | . . . . . . . . . . . . . . . . . . . . . . . . . . . . . . . . . . Overloaded Fab Kills . | . . . . . . . . . . . . . . . . . . . . . . . . . . . . . . . . . . Hacking | -11 -10 -10 -9 -9 -9 -8 -8 -8 -7 -7 -7 -7 -7 -7 -6 -6 -6 -6 -6 -6 -6 -5 -5 -5 -5 -5 -4 -4 -4 -3 -3 -2 -1 --------- Run | Yrd Mat Min Mat Min Exi Min Mat Sto Fac Gar Fac Low Low Zio Pro Fac Gar Fac Low Low Dat Pro Fac Upp Upp Zhi Pro Fac Gar Res Tes Res Acc Machines Accessed 128 | . 5 2 4 1 4 . 4 13 10 5 7 . . . . 22 4 2 . 2 4 . 9 . . 9 . 13 2 4 . . 2 Terminals 66 | . 4 2 4 . . . 3 10 5 5 2 . . . . 9 4 . . . . . 5 . . . . 7 2 2 . . 2 Fabricators 14 | . . . . . . . . . 3 . . . . . . 5 . 1 . . . . 2 . . . . 2 . 1 . . . Repair Stations 9 | . 1 . . . . . . 1 1 . 1 . . . . 2 . . . . . . 1 . . . . 2 . . . . . Recycling Units 6 | . . . . . . . . 2 . . 2 . . . . 2 . . . . . . . . . . . . . . . . . Scanalyzers 7 | . . . . . . . 1 . . . 1 . . . . 2 . 1 . . . . 1 . . . . . . 1 . . . Garrison Access 6 | . . . . . . . . . 1 . 1 . . . . 2 . . . . . . . . . . . 2 . . . . . Total Hacks 475 | . 19 4 11 1 27 . 16 39 30 12 13 . . . . 68 9 5 . 4 30 . 32 . . 47 . 68 12 23 . . 5 Successful 303 | . 6 1 4 1 27 . 8 9 12 5 5 . . . . 40 4 4 . 4 30 . 18 . . 47 . 55 4 19 . . . Failed 169 | . 12 3 7 . . . 8 30 18 7 8 . . . . 27 5 1 . . . . 13 . . . . 13 8 4 . . 5 Catastrophic 33 | . 5 1 1 . . . 1 7 6 1 1 . . . . 1 2 1 . . . . 3 . . . . . . 1 . . 2 Database Lockouts 3 | . 1 . . . . . . . . . . . . . . 1 . . . . . . 1 . . . . . . . . . . Manual 179 | . 16 4 11 . 1 . 6 11 9 1 2 . . . . 22 2 1 . . . . 17 . . . . 56 11 4 . . 5 Terminals 249 | . 15 4 11 . . . 10 33 13 12 5 . . . . 33 9 1 . . . . 20 . . . . 55 12 11 . . 5 Fabricators 49 | . . . . . . . . . 9 . . . . . . 16 . 2 . . . . 8 . . . . 5 . 9 . . . Repair Stations 25 | . 4 . . . . . . 2 6 . 3 . . . . 4 . . . . . . 3 . . . . 3 . . . . . Recycling Units 15 | . . . . . . . . 4 . . 3 . . . . 8 . . . . . . . . . . . . . . . . . Scanalyzers 18 | . . . . . . . 6 . . . 1 . . . . 5 . 2 . . . . 1 . . . . . . 3 . . . Garrison Access 10 | . . . . . . . . . 2 . 1 . . . . 2 . . . . . . . . . . . 5 . . . . . Terminal Hacks 205 | . 4 1 4 1 27 . 4 8 2 5 . . . . . 13 4 . . 4 30 . 7 . . 47 . 33 4 7 . . . Record 76 | . . . . . 26 . . . . . . . . . . . . . . 3 11 . . . . 36 . . . . . . . Part Schematic 14 | . . . . . . . . . . . . . . . . . . . . . 9 . 2 . . 3 . . . . . . . Robot Schematic 10 | . . . 1 . . . . . . . . . . . . 1 . . . . 7 . . . . . . 1 . . . . . Robot Analysis 29 | . 4 1 2 . . . 1 . 1 . . . . . . 1 . . . . . . 2 . . 4 . 13 . . . . . Prototype ID Bank 13 | . . . . . . . 1 2 . . . . . . . 2 . . . . 3 . . . . 4 . 1 . . . . . Open Door 8 | . . . . 1 . . . 3 . 2 . . . . . . 1 . . 1 . . . . . . . . . . . . . Open DSF 1 | . . . . . . . . . 1 . . . . . . . . . . . . . . . . . . . . . . . . Level Access Points 1 | . . . . . . . . . . . . . . . . . . . . . . . . . . . . 1 . . . . . Branch Access Points 3 | . . . 1 . . . . 1 . . . . . . . . . . . . . . . . . . . 1 . . . . . Emergency Access Points 2 | . . . . . . . . . . 1 . . . . . . 1 . . . . . . . . . . . . . . . . Machine Index 1 | . . . . . . . . . . . . . . . . . . . . . . . . . . . . 1 . . . . . Terminal Index 3 | . . . . . . . 1 . . . . . . . . . . . . . . . 1 . . . . . . 1 . . . Fabricator Index 2 | . . . . . . . . . . . . . . . . 1 . . . . . . 1 . . . . . . . . . . Garrison Index 1 | . . . . . . . . . . . . . . . . . . . . . . . . . . . . 1 . . . . . Unreport Threat 11 | . . . . . . . . . . . . . . . . 3 . . . . . . . . . . . 3 1 4 . . . Disarm Traps 1 | . . . . . . . . . . . . . . . . . . . . . . . . . . . . 1 . . . . . Reprogram Traps 8 | . . . . . . . . 2 . . . . . . . 2 . . . . . . . . . . . 4 . . . . . Recall Investigation 5 | . . . . . . . . . . . . . . . . 1 . . . . . . 1 . . . . 2 . 1 . . . Recall Reinforcements 4 | . . . . . . . . . . . . . . . . 1 . . . . . . . . . . . 3 . . . . . Recall Assault 1 | . . . . . . . . . . . . . . . . . . . . . . . . . . . . . . 1 . . . Registered Components 1 | . . . . . . . . . . . . . . . . 1 . . . . . . . . . . . . . . . . . Zone Layout 2 | . . . . . . . 1 . . . . . . . . . . . . . . . . . . . . 1 . . . . . Garrison Registry 3 | . . . . . . . . . . 1 . . . . . . 1 . . . . . . . . . . . 1 . . . . Patrol Navigation 3 | . . . . . . . . . . 1 . . . . . . 1 . . . . . . . . . . . 1 . . . . Security Stations 1 | . . . . . . . . . . . . . . . . . . . . . . . . . . . . . 1 . . . . Derelict Proto ID Bank 1 | . . . . . 1 . . . . . . . . . . . . . . . . . . . . . . . . . . . . Fabricator Hacks 34 | . . . . . . . . . 6 . . . . . . 7 . 2 . . . . 5 . . . . 5 . 9 . . . Network Status 2 | . . . . . . . . . . . . . . . . . . . . . . . 1 . . . . 1 . . . . . Load Schematic 19 | . . . . . . . . . 3 . . . . . . 5 . 1 . . . . 2 . . . . 2 . 6 . . . Build 13 | . . . . . . . . . 3 . . . . . . 2 . 1 . . . . 2 . . . . 2 . 3 . . . Repair Station Hacks 16 | . 2 . . . . . . . 3 . 2 . . . . 4 . . . . . . 2 . . . . 3 . . . . . Scan Component 9 | . 1 . . . . . . . 2 . 1 . . . . 2 . . . . . . 1 . . . . 2 . . . . . Repair 7 | . 1 . . . . . . . 1 . 1 . . . . 2 . . . . . . 1 . . . . 1 . . . . . Recycling Unit Hacks 8 | . . . . . . . . 1 . . 2 . . . . 5 . . . . . . . . . . . . . . . . . Recycle Component 2 | . . . . . . . . . . . . . . . . 2 . . . . . . . . . . . . . . . . . Process 2 | . . . . . . . . . . . 1 . . . . 1 . . . . . . . . . . . . . . . . . Report Inventory 1 | . . . . . . . . . . . . . . . . 1 . . . . . . . . . . . . . . . . . Retrieve Matter 2 | . . . . . . . . . . . 1 . . . . 1 . . . . . . . . . . . . . . . . . Retrieve Components 1 | . . . . . . . . 1 . . . . . . . . . . . . . . . . . . . . . . . . . Scanalyzer 13 | . . . . . . . 4 . . . . . . . . 5 . 2 . . . . . . . . . . . 2 . . . Insert Component 7 | . . . . . . . 2 . . . . . . . . 2 . 1 . . . . . . . . . . . 2 . . . Analyze 6 | . . . . . . . 2 . . . . . . . . 3 . 1 . . . . . . . . . . . . . . . Garrison Access Hacks 6 | . . . . . . . . . 1 . 1 . . . . 2 . . . . . . . . . . . 2 . . . . . Unlock Access 4 | . . . . . . . . . 1 . . . . . . 1 . . . . . . . . . . . 2 . . . . . Seal Access 2 | . . . . . . . . . . . 1 . . . . 1 . . . . . . . . . . . . . . . . . Unauthorized Hacks 21 | . . . . . . . . . . . . . . . . 4 . . . . . . 4 . . . . 12 . 1 . . . Terminals 19 | . . . . . . . . . . . . . . . . 4 . . . . . . 4 . . . . 10 . 1 . . . Assimilate 4 | . . . . . . . . . . . . . . . . . . . . . . . . . . . . 4 . . . . . Botnet 15 | . . . . . . . . . . . . . . . . 4 . . . . . . 4 . . . . 6 . 1 . . . Fabricators . | . . . . . . . . . . . . . . . . . . . . . . . . . . . . . . . . . . Repair Stations . | . . . . . . . . . . . . . . . . . . . . . . . . . . . . . . . . . . Recycling Units . | . . . . . . . . . . . . . . . . . . . . . . . . . . . . . . . . . . Scanalyzers . | . . . . . . . . . . . . . . . . . . . . . . . . . . . . . . . . . . Garrison Access 2 | . . . . . . . . . . . . . . . . . . . . . . . . . . . . 2 . . . . . Reprogram 2 | . . . . . . . . . . . . . . . . . . . . . . . . . . . . 2 . . . . . Data Cores Recovered 4 | . . . . . . . . . 1 . 1 . . . . 1 . . . . . . 1 . . . . . . . . . . Used 1 | . . . . . . . . . . . 1 . . . . . . . . . . . . . . . . . . . . . . Hacking Detections 92 | . 5 2 4 . . . 4 10 9 4 5 . . . . 19 3 2 . . . . 9 . . . . 9 2 3 . . 2 Full Trace Events 34 | . 2 1 2 . . . 1 4 5 . 1 . . . . 10 1 1 . . . . 3 . . . . 1 . 1 . . 1 Feedback Events 3 | . . . 1 . . . . . . . . . . . . 2 . . . . . . . . . . . . . . . . . Corruption 2 | . . . 1 . . . . . . . . . . . . 1 . . . . . . . . . . . . . . . . . Hackware Fried 1 | . . . . . . . . . . . . . . . . 1 . . . . . . . . . . . . . . . . . Feedback Blocked 1 | . . . . . . . . . . . . . . . . . . . . . . . . . . . . . . . . . 1 Robot Schematics Acquired 14 | . . . 1 . . . . . . . . . . 4 . 1 . . . . 7 . . . . . . 1 . . . . . Robots Built 16 | . . . . . . . . . 3 . . . . . . 2 . 1 . . . . 1 . . . . 3 . 6 . . . Authchips 4 | . . . . . . . . . . . . . . . . . . . . . . . . . . . . 1 . 3 . . . Time 1136 | . . . . . . . . . 148 . . . . . . 222 . 116 . . . . 222 . . . . 272 . 156 . . . Total Robot Build Rating 84 | . . . . . . . . . 3 . . . . . . 18 . 3 . . . . 9 . . . . 19 . 32 . . . Part Schematics Acquired 32 | . . . . . . . 1 . . . . . . 15 . 1 . 1 . . 9 . 2 . . 3 . . . . . . . Parts Built 1 | . . . . . . . . . . . . . . . . . . . . . . . 1 . . . . . . . . . . Authchips . | . . . . . . . . . . . . . . . . . . . . . . . . . . . . . . . . . . Time 64 | . . . . . . . . . . . . . . . . . . . . . . . 64 . . . . . . . . . . Total Part Build Rating 8 | . . . . . . . . . . . . . . . . . . . . . . . 8 . . . . . . . . . . Parts Repaired 7 | . 1 . . . . . . . 1 . 1 . . . . 2 . . . . . . 1 . . . . 1 . . . . . Time 227 | . 26 . . . . . . . 13 . 62 . . . . 75 . . . . . . 26 . . . . 25 . . . . . Parts Recycled 2 | . . . . . . . . . . . . . . . . 2 . . . . . . . . . . . . . . . . . Recycled Matter 188 | . . . . . . . . . . . 2 . . . . 186 . . . . . . . . . . . . . . . . . Retrieved Matter 274 | . . . . . . . . . . . 2 . . . . 272 . . . . . . . . . . . . . . . . . Retrieved Components 3 | . . . . . . . . 3 . . . . . . . . . . . . . . . . . . . . . . . . . Parts Scanalyzed 5 | . . . . . . . 1 . . . . . . . . 2 . 1 . . . . . . . . . . . 1 . . . Part Schematics Acquired 3 | . . . . . . . 1 . . . . . . . . 1 . 1 . . . . . . . . . . . . . . . Parts Damaged . | . . . . . . . . . . . . . . . . . . . . . . . . . . . . . . . . . . Bothacking | -11 -10 -10 -9 -9 -9 -8 -8 -8 -7 -7 -7 -7 -7 -7 -6 -6 -6 -6 -6 -6 -6 -5 -5 -5 -5 -5 -4 -4 -4 -3 -3 -2 -1 ------------ Run | Yrd Mat Min Mat Min Exi Min Mat Sto Fac Gar Fac Low Low Zio Pro Fac Gar Fac Low Low Dat Pro Fac Upp Upp Zhi Pro Fac Gar Res Tes Res Acc Used RIF Installer . | . . . . . . . . . . . . . . . . . . . . . . . . . . . . . . . . . . Robots Hacked 10 | . . . . . . . . . . . . . . . . . . . . . . . . . . . . 10 . . . . . Non-combat 10 | . . . . . . . . . . . . . . . . . . . . . . . . . . . . 10 . . . . . Combat . | . . . . . . . . . . . . . . . . . . . . . . . . . . . . . . . . . . Robot Hacks Applied 18 | . . . . . . . . . . . . . . . . . . . . . . . . . . . . 18 . . . . . parse_system 2 | . . . . . . . . . . . . . . . . . . . . . . . . . . . . 2 . . . . . no_distress 9 | . . . . . . . . . . . . . . . . . . . . . . . . . . . . 9 . . . . . find_chute 3 | . . . . . . . . . . . . . . . . . . . . . . . . . . . . 3 . . . . . find_fabricator 2 | . . . . . . . . . . . . . . . . . . . . . . . . . . . . 2 . . . . . find_dsf 1 | . . . . . . . . . . . . . . . . . . . . . . . . . . . . 1 . . . . . find_recycling 1 | . . . . . . . . . . . . . . . . . . . . . . . . . . . . 1 . . . . . Relay Couplers Released 73 | . . . . . . . . . . 16 . . . . . . 28 . . . . . 4 . . . . 1 23 1 . . . Machine Destruction 69 | . . . . . . . . . . 16 . . . . . . 28 . . . . . . . . . . 1 23 1 . . . Programmers 4 | . . . . . . . . . . . . . . . . . . . . . . . 4 . . . . . . . . . . Fabnet Peak Effective % . | . . . . . . . . . . . . . . . . . . . . . . . . . . . . . . . . . . Robots Rewired 34 | . . . . . . . . . . 2 . . . . . . 13 1 . . . 2 . . . . . . 16 . . . . Allies Hacked 2 | . . . . . . . . . . . . . . . . . . . . . . . 1 . . . . . . . . . 1 Hacks Repelled . | . . . . . . . . . . . . . . . . . . . . . . . . . . . . . . . . . . Allies | -11 -10 -10 -9 -9 -9 -8 -8 -8 -7 -7 -7 -7 -7 -7 -6 -6 -6 -6 -6 -6 -6 -5 -5 -5 -5 -5 -4 -4 -4 -3 -3 -2 -1 -------- Run | Yrd Mat Min Mat Min Exi Min Mat Sto Fac Gar Fac Low Low Zio Pro Fac Gar Fac Low Low Dat Pro Fac Upp Upp Zhi Pro Fac Gar Res Tes Res Acc Total Allies 76 | . . 1 . . . . . 10 3 3 . . . . . 2 13 3 . 2 . 3 1 . . . . 10 16 6 . . 3 Largest Group 23 | . . 1 . . . . . 10 3 2 . . . . . 1 6 7 . 2 . 3 3 . . . . 8 20 23 . . 3 Highest-Rated Group 1168 | . . 31 . . . . . 173 30 146 . . . . . 67 191 217 . 62 . 149 130 . . . . 335 1086 1168 . . 379 Highest-Rated Ally 148 | . . 31 . . . . . 29 10 146 . . . . . 67 46 46 . 31 . 96 70 . . . . 67 148 148 . . 135 Warlord Squad Rendezvous 14 | . . . . . . . . . . . . . . . . 4 . 1 . . . . 4 . . . . 3 . 2 . . . Dakka 1 | . . . . . . . . . . . . . . . . . . . . . . . . . . . . . . 1 . . . Infantry 1 | . . . . . . . . . . . . . . . . . . . . . . . . . . . . 1 . . . . . Muscle 5 | . . . . . . . . . . . . . . . . 1 . 1 . . . . 1 . . . . 1 . 1 . . . Pyro 3 | . . . . . . . . . . . . . . . . 1 . . . . . . 1 . . . . 1 . . . . . Chimera 2 | . . . . . . . . . . . . . . . . 2 . . . . . . . . . . . . . . . . . Ghost 2 | . . . . . . . . . . . . . . . . . . . . . . . 2 . . . . . . . . . . Total Orders 124 | . . . . . . . . 7 13 1 . . . . . 4 4 12 . . . . 4 . . . . 7 44 28 . . . STAY 65 | . . . . . . . . . 8 . . . . . . 1 2 7 . . . . 1 . . . . 4 29 13 . . . FOLLOW 47 | . . . . . . . . . 5 1 . . . . . 1 2 4 . . . . 1 . . . . 3 15 15 . . . EXPLORE 7 | . . . . . . . . 7 . . . . . . . . . . . . . . . . . . . . . . . . . RETURN 5 | . . . . . . . . . . . . . . . . 2 . 1 . . . . 2 . . . . . . . . . . Ally Attacks 650 | . . 6 . . . . . 103 . 20 . . . . . 14 68 41 . 10 . 17 25 . . . . 6 132 175 . . 33 Total Damage 24338 | . . 21 . . . . . 1368 . 558 . . . . . 1450 1924 689 . 148 . 653 3742 . . . . 166 6528 6698 . . 393 Kills 137 | . . . . . . . . 17 . 5 . . . . . 9 8 4 . 2 . 7 18 . . . . 1 27 36 . . 3 Allies Corrupted 4 | . . . . . . . . 1 . . . . . . . . . . . . . . 1 . . . . . . . . . 2 Allies Melted 2 | . . . . . . . . . . . . . . . . . 1 . . . . . . . . . . . 1 . . . . Intel | -11 -10 -10 -9 -9 -9 -8 -8 -8 -7 -7 -7 -7 -7 -7 -6 -6 -6 -6 -6 -6 -6 -5 -5 -5 -5 -5 -4 -4 -4 -3 -3 -2 -1 ------- Run | Yrd Mat Min Mat Min Exi Min Mat Sto Fac Gar Fac Low Low Zio Pro Fac Gar Fac Low Low Dat Pro Fac Upp Upp Zhi Pro Fac Gar Res Tes Res Acc Robot Analysis Total 29 | . 4 1 2 . . . 1 . 1 . . . . . . 1 . . . . . . 2 . . 4 . 13 . . . . . Derelict Logs Recovered 15 | . . 1 . 2 . . . . . . . 3 1 1 1 . . . 1 2 . 1 . 2 . . . . . . . . . Drone Launches 49 | . . . . . . . . 35 7 . . . . . . 2 . 1 . . . . 4 . . . . . . . . . . Drone Recoveries 17 | . . . . . . . . 5 5 . . . . . . 2 . 1 . . . . 4 . . . . . . . . . . Decoded 0b10 Intel 117 | . . . . . . . . . . . . . . . . 12 11 10 . . . . . . . . . 22 8 18 8 17 11 Traps 28 | . . . . . . . . . . . . . . . . . 11 7 . . . . . . . . . 1 1 5 . 3 . Emergency Access 21 | . . . . . . . . . . . . . . . . 12 . 3 . . . . . . . . . 2 . . 2 2 . Items 53 | . . . . . . . . . . . . . . . . . . . . . . . . . . . . 17 3 10 6 8 9 Machines 6 | . . . . . . . . . . . . . . . . . . . . . . . . . . . . . 3 . . 3 . Patrols 4 | . . . . . . . . . . . . . . . . . . . . . . . . . . . . 1 1 1 . . 1 Guards 5 | . . . . . . . . . . . . . . . . . . . . . . . . . . . . 1 . 2 . 1 1 Exploration | -11 -10 -10 -9 -9 -9 -8 -8 -8 -7 -7 -7 -7 -7 -7 -6 -6 -6 -6 -6 -6 -6 -5 -5 -5 -5 -5 -4 -4 -4 -3 -3 -2 -1 ------------- Run | Yrd Mat Min Mat Min Exi Min Mat Sto Fac Gar Fac Low Low Zio Pro Fac Gar Fac Low Low Dat Pro Fac Upp Upp Zhi Pro Fac Gar Res Tes Res Acc Turns Passed 22212 | 96 338 608 279 396 191 227 209 545 801 1876 891 363 482 1696 776 2295 1654 684 248 385 41 446 1833 439 276 104 179 710 1378 576 258 589 343 Spaces Moved 27188 | 45 263 758 246 610 416 448 295 599 1130 1797 657 292 368 1106 514 2541 1741 844 407 746 87 579 2333 715 461 215 354 1518 2019 1156 632 847 449 Core 453 | 1 . . . . . . . . . . . . . . . 126 . . . . . . . . . . . . . . 32 136 158 Treads . | . . . . . . . . . . . . . . . . . . . . . . . . . . . . . . . . . . Legs 3849 | . . . . . . . . . . 462 657 292 368 1105 514 445 . . . . . . . . . . . . . 6 . . . Wheels 468 | 44 263 105 40 16 . . . . . . . . . . . . . . . . . . . . . . . . . . . . . Hover 11196 | . . 653 206 154 . . . . . 91 . . . 1 . 1331 1741 844 407 746 87 579 2333 715 461 70 . . . . . 711 66 Flight 11222 | . . . . 440 416 448 295 599 1130 1244 . . . . . 639 . . . . . . . . . 145 354 1518 2019 1150 600 . 225 Fastest Speed 22 | 50 80 65 65 31 31 50 50 50 50 50 120 120 122 122 130 28 40 38 38 47 47 47 38 55 55 27 27 27 32 28 29 48 22 Average Speed 57 | 83 80 67 69 41 43 50 50 50 50 76 120 120 122 148 130 57 47 50 40 47 47 47 49 55 55 36 27 28 32 32 33 48 39 Slowest Speed 240 | 90 95 95 130 130 50 50 50 50 50 240 120 122 122 210 130 200 114 114 47 47 47 47 116 55 55 106 27 32 108 194 50 60 160 Overloaded Moves 43 | . . . . . . . . . . . . . . . . . . . . . . . 43 . . . . . . . . . . Propulsion Burnouts . | . . . . . . . . . . . . . . . . . . . . . . . . . . . . . . . . . . Robots Hopped 153 | . . . . 5 . 8 . 24 4 1 . . . . . 7 . . . . . . . . . . . 24 26 34 10 . 10 Cave-ins Triggered 3 | . . . . . . . . . . . . . . . . . . . . . . . . . . . . . . . 3 . . Teleports 1 | . . . . . . . . . . . . . . . . . . . . . . . . . . . . . . . 1 . . Exploration Rate (%) 58 | 3 40 93 32 97 90 83 29 95 34 98 21 52 63 84 59 52 93 20 60 83 72 76 38 72 64 62 56 38 92 23 80 26 13 Regions Visited 33 Branch Regions 18 Pre-discovered Areas 12 | . . 1 . . . . . . . . . 1 1 2 . . . . 1 2 1 . . . . 3 . . . . . . . Known Exits Taken 15 | . . . 1 . . . 1 1 1 . . 1 . . 1 1 . 1 . . . 1 1 . . . 1 1 . 1 1 1 . Unknown Exits Taken 15 | 1 1 1 . 1 1 1 . . . . 1 . 1 1 . . . . 1 1 1 . . 1 1 1 . . . . . . . Scrap Searched 32 | . . 1 . 1 . 1 . . . . . 1 2 2 3 . . . 4 8 . 1 . 3 2 . 3 . . . . . . Spaces Dug 133 | . . . . . . . 6 1 . . . . . . . 18 4 1 . . . . 10 . . . . 2 . 4 36 51 . Terrain Destroyed 3599 | . . 128 . . . . 6 41 42 532 185 . 24 . 71 151 234 308 33 1 . 125 473 11 22 . . 82 414 173 98 408 37 Melee 7 | . . . . . . . 6 1 . . . . . . . . . . . . . . . . . . . . . . . . . Projectile 162 | . . . . . . . . . . 3 . . 2 . 13 26 18 10 3 1 . 4 44 3 . . . 8 3 5 . 13 6 AOE 3430 | . . 128 . . . . . 40 42 529 185 . 22 . 58 125 216 298 30 . . 121 429 8 22 . . 74 411 168 98 395 31 Terrain Rammed . | . . . . . . . . . . . . . . . . . . . . . . . . . . . . . . . . . . Walls Destroyed . | . . . . . . . . . . . . . . . . . . . . . . . . . . . . . . . . . . Machines Disabled . | . . . . . . . . . . . . . . . . . . . . . . . . . . . . . . . . . . Actions | -11 -10 -10 -9 -9 -9 -8 -8 -8 -7 -7 -7 -7 -7 -7 -6 -6 -6 -6 -6 -6 -6 -5 -5 -5 -5 -5 -4 -4 -4 -3 -3 -2 -1 --------- Run | Yrd Mat Min Mat Min Exi Min Mat Sto Fac Gar Fac Low Low Zio Pro Fac Gar Fac Low Low Dat Pro Fac Upp Upp Zhi Pro Fac Gar Res Tes Res Acc Total 31946 | 85 333 814 300 684 428 441 340 731 1278 2176 742 305 393 1163 569 3127 2439 1037 453 772 86 711 2757 747 478 241 437 1752 2635 1281 667 967 577 Wait 2181 | 21 6 20 . 22 . . . 34 48 105 38 5 2 2 10 247 449 88 14 14 . 87 108 8 2 . 74 133 464 83 15 34 48 Move 26893 | 44 262 757 245 599 415 431 294 560 1121 1792 656 291 367 1105 513 2526 1740 843 406 745 86 578 2332 714 460 214 353 1470 1982 1101 611 847 433 Hop 107 | . . . . 5 . 8 . 14 4 1 . . . . . 7 . . . . . . . . . . . 23 10 20 9 . 6 Pick Up 210 | 5 9 1 8 5 . 1 13 7 13 20 6 2 2 14 . 27 14 3 2 2 . 1 22 5 2 2 2 3 4 4 2 5 4 Fast Attach 241 | 7 6 . 3 5 1 1 5 5 1 8 8 1 1 12 2 41 7 15 4 3 . 6 22 . 2 10 3 16 3 16 3 17 7 Attach 142 | . 1 2 3 . . . . 4 5 10 . . 1 3 2 21 12 9 3 . . 1 20 1 . . . 6 5 7 7 5 14 Detach 117 | . 1 1 . . 2 . 1 3 . 7 1 . 1 9 2 16 4 7 2 . . 1 15 1 1 2 . 10 3 2 7 4 14 Swap 176 | 1 4 4 2 3 3 . 2 5 13 17 3 2 1 3 1 27 7 7 3 . . 1 21 4 . 1 . 12 16 7 1 4 1 Drop 333 | . 12 2 7 13 7 . 11 12 9 26 13 4 3 13 2 57 20 11 2 4 . 7 31 3 2 12 5 14 5 12 3 5 6 Fire 1163 | 7 32 27 32 32 . . . 73 64 100 17 . 6 2 37 155 89 47 17 4 . 22 179 9 4 . . 29 69 29 5 46 30 Melee 47 | . . . . . . . 14 5 . . . . . . . . . . . . . . 7 . . . . 18 3 . . . . Ram 14 | . . . . . . . . . . . . . . . . . . . . . . . . . . . . . . . 2 . 12 Kick 3 | . . . . . . . . . . . . . . . . 3 . . . . . . . . . . . . . . . . . Crush . | . . . . . . . . . . . . . . . . . . . . . . . . . . . . . . . . . . Escape Stasis 130 | . . . . . . . . . . 79 . . . . . . 31 . . . . . . . . . . 18 . . 2 . . Rewire 166 | . . . . . . . . 2 . 11 . . . . . . 66 7 . . . 7 . . . . . . 71 . . . 2 Trap 16 | . . . . . . . . . . . . . 9 . . . . . . . . . . 2 5 . . . . . . . . Miscellaneous 7 | . . . . . . . . 7 . . . . . . . . . . . . . . . . . . . . . . . . . Route ------- -11/Scrapyard -10/Materials (discovered 2 exits: *Mat / *Min) -10/Mines (discovered 2 exits: *Mat x2) -9/Materials -9/Mines (discovered 3 exits: *Mat x2 / *Exi) -9/Exiles -8/Mines -8/Materials (discovered 3 exits: *Fac x2 / *Sto) -8/Storage (discovered 2 exits: *Fac / Rec) -7/Factory (discovered 2 exits: [*Low] / Gar) -7/Garrison (discovered 3 exits: *Fac x3) -7/Factory -7/Lower Caves -7/Lower Caves (discovered 2 exits: *Fac / [*Zio]) -7/Zion -6/Proximity Caves -6/Factory (discovered 9 exits: Fac x4 / *Low x2 / Ext x2 / Gar) -6/Garrison (discovered 3 exits: *Fac x3) -6/Factory -6/Lower Caves -6/Lower Caves (discovered 2 exits: *Fac / *Dat) -6/Data Miner -5/Proximity Caves -5/Factory (discovered 5 exits: Fac x3 / *Upp x2) -5/Upper Caves -5/Upper Caves (discovered 2 exits: *Fac / *Zhi) -5/Zhirov -4/Proximity Caves -4/Factory (discovered 7 exits: *Res x4 / Upp x2 / Gar) -4/Garrison (discovered 3 exits: *Res x3) -3/Research (discovered 3 exits: *Res / Arm / *Tes) -3/Testing -2/Research -1/Access (discovered 2 exits: Sur / Com) History --------- Turn | Location | Event 9 | -11/Scrapyard | Discovered new exit (range 15) 97 | -11/Scrapyard | Entered Materials 113 | -10/Materials | Central database locked down 275 | -10/Materials | Repaired Assault Rifle 300 | -10/Materials | Build established: Mutant 304 | -10/Materials | Discovered new exit (range 13) 423 | -10/Materials | Discovered new exit (range 15) 435 | -10/Materials | Entered Mines 436 | -10/Mines | Assembled infested the area 441 | -10/Mines | Assisted by a Guerilla fighting off Assembled 551 | -10/Mines | Core integrity fell below 50% 589 | -10/Mines | Core integrity fell below 20% 744 | -10/Mines | Received a Mining Laser from a helpful Derelict 849 | -10/Mines | Discovered new exit (range 14) 912 | -10/Mines | Discovered new exit (range 12) 1043 | -10/Mines | Entered Materials 1043 | -9/Materials | Evolved 2 slots: Propulsion x2 1101 | -9/Materials | Identified exit to Mines 1322 | -9/Materials | Entered Mines 1554 | -9/Mines | Found a damaged Exp. Sensor Array with a note attached 1555 | -9/Mines | Found Prototype Device 1614 | -9/Mines | Discovered new exit (range 15) 1617 | -9/Mines | Learned 2 Materials zone layouts 1624 | -9/Mines | Found the Drone Emporium 1643 | -9/Mines | Found Prototype Device 1704 | -9/Mines | Learned location of 2 exits from Materials 1710 | -9/Mines | Discovered new exit (range 8) 1716 | -9/Mines | Deemed a non-threat by the Exiles lab entrance 1717 | -9/Mines | Discovered new exit (range 5) 1718 | -9/Mines | Entered Exiles 1726 | -9/Exiles | Met 8R-AWN 1735 | -9/Exiles | Met EX-HEX 1746 | -9/Exiles | Met EX-BIN 1751 | -9/Exiles | Aligned with FarCom system 1751 | -9/Exiles | Given EX-Vault access code 1764 | -9/Exiles | Opened EX-Vault 1768 | -9/Exiles | Found Flying Fortress v7 1780 | -9/Exiles | Warned to stay clear of 0b10 Research branches 1793 | -9/Exiles | Met EX-DEC 1825 | -9/Exiles | Visited The Gauntlet 1904 | -9/Exiles | Discovered new exit (range 12) 1909 | -9/Exiles | Left Exiles lab with Flying Fortress v7 1909 | -9/Exiles | Entered Mines 2027 | -8/Mines | Discovered new exit (range 10) 2136 | -8/Mines | Entered Materials 2136 | -8/Materials | Evolved 2 slots: Utility x2 2137 | -8/Materials | Identified exit to Factory 2137 | -8/Materials | Identified exit to Storage 2195 | -8/Materials | Identified Decoy Drone Bay 2345 | -8/Materials | Entered Storage 2406 | -8/Storage | Assisted by bots powering up and referring to "LRC-V3" 2475 | -8/Storage | Discovered exit to Factory (range 71) 2650 | -8/Storage | Lost 6 allies 2724 | -8/Storage | Identified exit to Recycling 2745 | -8/Storage | First assault squad dispatched 2756 | -8/Storage | Lost 8 allies 2890 | -8/Storage | Entered Factory 2890 | -7/Factory | Accompanied by 6 allies 2890 | -7/Factory | Evolved 2 slots: Utility x2 3004 | -7/Factory | Identified exit to DSF 3090 | -7/Factory | Fabricated O-16 Technician? 3155 | -7/Factory | Fabricated O-16 Technician? 3260 | -7/Factory | Build established: Hacker-Mutant 3280 | -7/Factory | Repaired Grenade Launcher 3508 | -7/Factory | Fabricated O-16 Technician (x1) 3551 | -7/Factory | Discovered new exit (range 5) 3556 | -7/Factory | P-60 Hacker assimilated allied Technician 4a 3620 | -7/Factory | Lost 4 allies 3689 | -7/Factory | Identified exit to Garrison 3690 | -7/Factory | First assault squad dispatched 3691 | -7/Factory | Entered Garrison 3956 | -7/Garrison | Triggered checkpoint 3980 | -7/Garrison | Triggered checkpoint 4021 | -7/Garrison | Build established: Mutant 4070 | -7/Garrison | Spotted B-75 Beast 4228 | -7/Garrison | Discovered new exit (range 8) 4250 | -7/Garrison | Triggered checkpoint 4297 | -7/Garrison | Garrison Relay disabled 4314 | -7/Garrison | Phase Generator disabled 4370 | -7/Garrison | Found Powered Armor 4372 | -7/Garrison | Found Powered Armor 4453 | -7/Garrison | Garrison Relay disabled 4485 | -7/Garrison | Triggered checkpoint 4548 | -7/Garrison | Garrison Relay disabled 4572 | -7/Garrison | Discovered new exit (range 12) 4592 | -7/Garrison | Triggered checkpoint 4663 | -7/Garrison | Discovered new exit (range 15) 4690 | -7/Garrison | Rescued HV-R5K 4854 | -7/Garrison | Triggered checkpoint 4950 | -7/Garrison | Triggered checkpoint 5159 | -7/Garrison | Build established: Scavenger-Mutant 5250 | -7/Garrison | Garrison Relay disabled 5271 | -7/Garrison | Discovered new exit (range 37) 5271 | -7/Garrison | Discovered new exit (range 35) 5271 | -7/Garrison | Discovered new exit (range 77) 5331 | -7/Garrison | Attempted to access garrison exit controls, blocked by remote lockdown 5567 | -7/Garrison | Entered Factory 5933 | -7/Factory | Repaired Imp. Antigrav System 6287 | -7/Factory | Discovered new exit (range 6) 6367 | -7/Factory | First assault squad dispatched 6458 | -7/Factory | Entered Lower Caves 6467 | -7/Lower Caves | Learned location of 1 exit from Factory 6479 | -7/Lower Caves | Met a Warlord Commander 6480 | -7/Lower Caves | Learned location of Warlord (-4) 6481 | -7/Lower Caves | Warlord Commander delivered Encrypted Comm Array 6493 | -7/Lower Caves | Found Encrypted Comm Array 6510 | -7/Lower Caves | Identified exit to Lower Caves 6645 | -7/Lower Caves | Learned Factory trap positions 6821 | -7/Lower Caves | Entered another Lower Caves area 6842 | -7/Lower Caves | Discovered new exit (range 13) 7294 | -7/Lower Caves | Discovered new exit (range 8) 7303 | -7/Lower Caves | Entered Zion 7419 | -7/Zion | Discovered new exit (range 15) 7448 | -7/Zion | Found Prototype Hackware 7448 | -7/Zion | Identified Exp. Hacking Suite 7451 | -7/Zion | Found Prototype Processor 7451 | -7/Zion | Identified Spectral Analyzer 7454 | -7/Zion | Found Prototype Processor 7454 | -7/Zion | Identified Exp. Melee Analysis Suite 7458 | -7/Zion | Found Prototype Processor 7458 | -7/Zion | Identified Exp. Terrain Scan Processor 7462 | -7/Zion | Found Prototype Processor 7462 | -7/Zion | Identified Exp. Target Analyzer 7759 | -7/Zion | Build established: Mutant 7881 | -7/Zion | Learned 4 Factory zone layouts 8259 | -7/Zion | Rebuked by Imprinter 8315 | -7/Zion | Given the Hacking Drone Bay 8315 | -7/Zion | Found Prototype Device 8315 | -7/Zion | Identified Hacking Drone Bay 8399 | -7/Zion | Found Prototype Device 8399 | -7/Zion | Identified Phasing AFG 8712 | -7/Zion | Build established: Hacker-Mutant 8999 | -7/Zion | Entered Proximity Caves 9324 | -6/Proximity Caves | Attracted the attention of an 0b10 checkpoint 9651 | -6/Proximity Caves | Identified exit to Factory 9775 | -6/Proximity Caves | Entered Factory 9775 | -6/Factory | Evolved 2 slots: Propulsion x1, Utility x1 9776 | -6/Factory | Identified exit to Extension 9778 | -6/Factory | Loaded intel: 98 trap records 9844 | -6/Factory | Identified exit to Factory 9847 | -6/Factory | Identified exit to Lower Caves 10142 | -6/Factory | Repaired Micro-nuke Launcher 10237 | -6/Factory | Joined by Warlord Chimera squad 10257 | -6/Factory | Identified exit to Garrison 10387 | -6/Factory | Central database locked down 10527 | -6/Factory | Lost 6 parts (5n1u) 10546 | -6/Factory | Joined by Warlord Chimera squad 10558 | -6/Factory | Fabricated D-83 Annihilator? 10614 | -6/Factory | Garrison activated, responded to threat 10653 | -6/Factory | Lost 4 allies 11293 | -6/Factory | Hacking Suite fried by hacking feedback 11329 | -6/Factory | Repaired Powered Armor 11391 | -6/Factory | Fabricated D-83 Annihilator? 11652 | -6/Factory | Build established: Mutant 11800 | -6/Factory | Joined by Warlord Muscle squad 11850 | -6/Factory | Joined by Warlord Pyro squad 12070 | -6/Factory | Entered Garrison 12254 | -6/Garrison | Triggered checkpoint 12285 | -6/Garrison | Garrison Relay disabled 12304 | -6/Garrison | Triggered checkpoint 12361 | -6/Garrison | Garrison Relay disabled 12374 | -6/Garrison | Discovered new exit (range 19) 12445 | -6/Garrison | Spotted B-75 Beast 12445 | -6/Garrison | Spotted B-75 Beast 12454 | -6/Garrison | Discovered new exit (range 19) 12490 | -6/Garrison | Triggered checkpoint 12560 | -6/Garrison | Garrison Relay disabled 12578 | -6/Garrison | Triggered checkpoint 12622 | -6/Garrison | Garrison Relay disabled 12670 | -6/Garrison | Triggered checkpoint 12677 | -6/Garrison | Discovered new exit (range 14) 12743 | -6/Garrison | Discovered new exit (range 71) 12743 | -6/Garrison | Discovered new exit (range 10) 12743 | -6/Garrison | Discovered new exit (range 45) 12754 | -6/Garrison | Triggered checkpoint 12754 | -6/Garrison | Garrison Relay disabled 12772 | -6/Garrison | Triggered checkpoint 12784 | -6/Garrison | Garrison Relay disabled 12893 | -6/Garrison | Spotted B-75 Beast 12995 | -6/Garrison | Found Fusion Bomb Launcher 13032 | -6/Garrison | Build established: Commander-Mutant 13109 | -6/Garrison | Lost 5 allies 13191 | -6/Garrison | Core integrity fell below 50% 13440 | -6/Garrison | Triggered checkpoint 13482 | -6/Garrison | Triggered checkpoint 13485 | -6/Garrison | Garrison Relay disabled 13724 | -6/Garrison | Entered Factory 13724 | -6/Factory | Accompanied by 6 allies 13847 | -6/Factory | Fabricated M-28 Smith? 13893 | -6/Factory | Lost 3 allies 14074 | -6/Factory | First assault squad dispatched 14187 | -6/Factory | Destroyed 8 combat bots 14212 | -6/Factory | High security lockdown imminent 14236 | -6/Factory | Lost 3 allies 14240 | -6/Factory | Lost 3 parts (1u2w) 14260 | -6/Factory | Joined by Warlord Muscle squad 14292 | -6/Factory | High security lockdown engaged 14393 | -6/Factory | Discovered exit to Lower Caves (range 20) 14408 | -6/Factory | Entered Lower Caves 14421 | -6/Lower Caves | Learned location of Extension (-6) 14426 | -6/Lower Caves | Attracted the attention of an 0b10 checkpoint 14510 | -6/Lower Caves | Build established: Hacker-Mutant 14515 | -6/Lower Caves | Spotted B-75 Beast 14526 | -6/Lower Caves | Encountered a Warlord checkpoint 14560 | -6/Lower Caves | Discovered new exit (range 9) 14656 | -6/Lower Caves | Entered another Lower Caves area 14659 | -6/Lower Caves | Discovered exit to Factory (range 13) 14793 | -6/Lower Caves | Learned 4 Factory zone layouts 14839 | -6/Lower Caves | A Commander dispatched an escort 14846 | -6/Lower Caves | Learned location of Armory (-3) 14846 | -6/Lower Caves | Learned Armory garrison access intel 15013 | -6/Lower Caves | Discovered new exit (range 11) 15041 | -6/Lower Caves | Entered Data Miner 15041 | -6/Data Miner | Accompanied by 1 ally 15041 | -6/Data Miner | Discovered new exit (range 6) 15042 | -6/Data Miner | Commander's escort returned to base 15049 | -6/Data Miner | Met Data Miner 15059 | -6/Data Miner | Learned location of Section 7 (-2) 15059 | -6/Data Miner | Acquired the access code to Warlord's prototype stash 15066 | -6/Data Miner | Received God Mode back door access code from Data Miner 15082 | -6/Data Miner | Entered Proximity Caves 15125 | -5/Proximity Caves | Learned Factory trap positions 15155 | -5/Proximity Caves | Escorted by Enhanced Grunt 15175 | -5/Proximity Caves | Attracted the attention of an 0b10 outpost 15528 | -5/Proximity Caves | Entered Factory 15528 | -5/Factory | Accompanied by 3 allies 15528 | -5/Factory | Evolved 2 slots: Utility x2 15529 | -5/Factory | Identified exit to Factory 15531 | -5/Factory | Loaded intel: 107 trap records 15626 | -5/Factory | Discovered new exit (range 19) 15636 | -5/Factory | Identified exit to Upper Caves 15805 | -5/Factory | Joined by Warlord Ghost squad 15828 | -5/Factory | First assault squad dispatched 15891 | -5/Factory | Found Prototype Launcher 15891 | -5/Factory | Identified Mni. Smartbomb Launcher 15893 | -5/Factory | Found Mni. Smartbomb Launcher 15895 | -5/Factory | Found Mni. Smartbomb Launcher 15975 | -5/Factory | Lost 5 allies 15976 | -5/Factory | Destroyed 8 combat bots 16027 | -5/Factory | Central database locked down 16087 | -5/Factory | Fabricated Hvy. Linear Accelerator? 16125 | -5/Factory | Joined by Warlord Pyro squad 16380 | -5/Factory | Joined by Warlord Muscle squad 16418 | -5/Factory | Repaired Cld. Aerolev Unit 16534 | -5/Factory | Joined by Warlord Ghost squad 16583 | -5/Factory | Cargo convoy interrupted 16631 | -5/Factory | Lost 5 allies 16633 | -5/Factory | Found Prototype Device 16633 | -5/Factory | Identified Exp. Thermal Shield 16790 | -5/Factory | Fabricated D-83 Annihilator? 17097 | -5/Factory | High security lockdown imminent 17177 | -5/Factory | High security lockdown engaged 17187 | -5/Factory | Destroyed 7 combat bots 17202 | -5/Factory | Lost 3 parts (1p2n) 17361 | -5/Factory | Entered Upper Caves 17413 | -5/Upper Caves | Core integrity fell below 50% 17655 | -5/Upper Caves | Learned location of 1 exit from Factory 17702 | -5/Upper Caves | Discovered new exit (range 4) 17786 | -5/Upper Caves | Spotted B-75 Beast 17800 | -5/Upper Caves | Entered another Upper Caves area 17805 | -5/Upper Caves | Discovered exit to Factory (range 8) 18059 | -5/Upper Caves | Discovered new exit (range 8) 18076 | -5/Upper Caves | Entered Zhirov 18076 | -5/Zhirov | Discovered new exit (range 3) 18086 | -5/Zhirov | Met Zhirov 18099 | -5/Zhirov | Found Alien Artifact 18099 | -5/Zhirov | Identified Integrated Dissipator 18099 | -5/Zhirov | Installed Integrated Dissipator, increased core heat dissipation (+20) 18145 | -5/Zhirov | Found Alien Artifact 18159 | -5/Zhirov | Learned location of Quarantine (-2) 18159 | -5/Zhirov | Learned location of Testing (-3) 18159 | -5/Zhirov | Learned location of Command (-1) 18161 | -5/Zhirov | Zhirov requested help retrieving the SGEMP Prototype 18180 | -5/Zhirov | Entered Proximity Caves 18313 | -4/Proximity Caves | Spotted B-86 Titan 18341 | -4/Proximity Caves | Discovered exit to Factory (range 6) 18359 | -4/Proximity Caves | Entered Factory 18359 | -4/Factory | Evolved 2 slots: Utility x2 18360 | -4/Factory | Identified exit to Research 18432 | -4/Factory | Repaired Nuclear Pulse Thruster 18498 | -4/Factory | Identified exit to Garrison 18536 | -4/Factory | Identified exit to Upper Caves 18661 | -4/Factory | Joined by Warlord Infantry squad 18701 | -4/Factory | Garrison activated, responded to threat 18735 | -4/Factory | Destroyed 10 combat bots 18744 | -4/Factory | Build established: Wizard-Sprinter 18759 | -4/Factory | Joined by Warlord Muscle squad 18850 | -4/Factory | Spotted B-86 Titan 18863 | -4/Factory | Joined by Warlord Pyro squad 18971 | -4/Factory | Fabricated H-66 Slayer? 18986 | -4/Factory | Fabricated D-83 Annihilator? 18992 | -4/Factory | Identified exit to Garrison 19069 | -4/Factory | Entered Garrison 19069 | -4/Garrison | Accompanied by 8 allies 19081 | -4/Garrison | Garrison Relay disabled 19105 | -4/Garrison | Triggered checkpoint 19122 | -4/Garrison | Spotted B-75 Beast 19132 | -4/Garrison | Spotted B-86 Titan 19142 | -4/Garrison | Destroyed B-75 Beast 19148 | -4/Garrison | Destroyed B-86 Titan 19160 | -4/Garrison | Rewired B-90 Cyclops 19163 | -4/Garrison | Rewired B-86 Titan 19232 | -4/Garrison | Spotted B-86 Titan 19233 | -4/Garrison | Triggered checkpoint 19244 | -4/Garrison | Allies destroyed B-86 Titan 19252 | -4/Garrison | Triggered checkpoint 19252 | -4/Garrison | Triggered checkpoint 19265 | -4/Garrison | Triggered checkpoint 19286 | -4/Garrison | Triggered checkpoint 19309 | -4/Garrison | Discovered exit to Research (range 43) 19309 | -4/Garrison | Discovered exit to Research (range 66) 19309 | -4/Garrison | Discovered exit to Research (range 12) 19309 | -4/Garrison | Learned Research security intel 19373 | -4/Garrison | Garrison Relay disabled 19436 | -4/Garrison | Garrison Relay disabled 19601 | -4/Garrison | Triggered checkpoint 19733 | -4/Garrison | Phase Generator disabled 19757 | -4/Garrison | Spotted B-86 Titan 19847 | -4/Garrison | Allies destroyed B-86 Titan 19868 | -4/Garrison | Triggered checkpoint 19883 | -4/Garrison | Garrison Relay disabled 19924 | -4/Garrison | Triggered checkpoint 19953 | -4/Garrison | Triggered checkpoint 20032 | -4/Garrison | Triggered checkpoint 20447 | -4/Garrison | Entered Research 20447 | -3/Research | Accompanied by 20 allies 20447 | -3/Research | Evolved 2 slots: Power x1, Propulsion x1 20448 | -3/Research | Identified exit to Armory 20456 | -3/Research | Identified Transdimensional Reconstructor 20502 | -3/Research | Garrison activated, responded to threat 20555 | -3/Research | Build established: Commander-Sprinter 20562 | -3/Research | Fabricated H-66 Slayer? 20616 | -3/Research | Fabricated H-66 Slayer? 20628 | -3/Research | High security lockdown imminent 20678 | -3/Research | Fabricated Y-64 Sentinel (x2) 20708 | -3/Research | High security lockdown engaged 20762 | -3/Research | Discovered new exit (range 18) 20828 | -3/Research | Lost 5 parts (2n2u1w) 20842 | -3/Research | Identified exit to Research 20894 | -3/Research | Lost 22 allies 20981 | -3/Research | Joined by Warlord Muscle squad 21004 | -3/Research | Joined by Warlord Dakka squad 21016 | -3/Research | Discovered new exit (range 9) 21023 | -3/Research | Identified exit to Testing 21023 | -3/Research | Entered Testing 21024 | -3/Testing | Maximum security lockdown engaged 21048 | -3/Testing | Found Fusion Bomb Launcher 21069 | -3/Testing | Spotted Striker 21069 | -3/Testing | Spotted Striker 21072 | -3/Testing | Spotted Alpha 7 21085 | -3/Testing | Stole the SGEMP Prototype 21145 | -3/Testing | Spotted PL-UUVJT7FSP3 21168 | -3/Testing | Spotted Executioner 21168 | -3/Testing | Spotted Executioner 21170 | -3/Testing | Warped through subspace 21190 | -3/Testing | Crushed by falling debris 21190 | -3/Testing | Crushed by falling debris 21221 | -3/Testing | Lost 6 parts (3n3u) 21264 | -3/Testing | Spotted Striker 21266 | -3/Testing | Crushed by falling debris 21266 | -3/Testing | System corruption reached 10% 21267 | -3/Testing | Core integrity fell below 50% 21271 | -3/Testing | Discovered exit to Research (range 14) 21278 | -3/Testing | Spotted Investigator 21281 | -3/Testing | Entered Research 21281 | -2/Research | Evolved 2 slots: Propulsion x2 21297 | -2/Research | Lost 5 parts (2n3u) 21450 | -2/Research | Found Fusion Bomb Launcher 21452 | -2/Research | Found Fusion Bomb Launcher 21531 | -2/Research | First assault squad dispatched 21679 | -2/Research | Spotted B-90 Cyclops 21762 | -2/Research | Build established: Hacker-Mutant 21815 | -2/Research | High security lockdown imminent 21830 | -2/Research | Spotted B-90 Cyclops 21854 | -2/Research | Discovered new exit (range 22) 21869 | -2/Research | Identified exit to Access 21870 | -2/Research | Entered Access 21870 | -1/Access | Evolved 2 slots: Utility x2 21871 | -1/Access | Loaded intel: 96 machine locations 21871 | -1/Access | Loaded intel: 97 trap records 21871 | -1/Access | Identified exit to Surface 21871 | -1/Access | Discovered exit to Surface (range 114) 21871 | -1/Access | Identified exit to Command 21871 | -1/Access | Discovered exit to Command (range 163) 21871 | -1/Access | Delivered the SGEMP Prototype to Zhirov 21871 | -1/Access | Zhirov transferred Access data 22041 | -1/Access | Spotted B-99 Colossus 22054 | -1/Access | Spotted B-99 Colossus 22069 | -1/Access | Energy Cycler disabled 22096 | -1/Access | Lost 13 parts (1p7n3u2w) 22129 | -1/Access | Zhirov warped through subspace 22174 | -1/Access | Core integrity fell below 50% 22176 | -1/Access | Spotted B-99 Colossus 22209 | -1/Access | System corruption reached 10% 22210 | -1/Access | Core integrity fell below 20% 22213 | -1/Access | Destroyed by B-99 Colossus with Multirail Last Messages --------------- 22205_ U-05 Engineer lays Concrete. 22206_ Slug penetrates Wall. 22206_ Slammed into P-80 Master. 22206_ U-05 Engineer lays Concrete. 22207_ System corrupted: Matter fused (-6). 22207_ Acquired 5 matter. 22207_ Slammed into P-80 Master. 22208_ Adv. Signal Interpreter destroyed. 22208_ U-05 Engineer lays Concrete. 22209_ W-44 Eye sends out distress signal. 22209_ Penetrated by Slug. 22209_ R-10 Processor collects Imp. Antigrav System. 22211_ >> DECODED: Hvy. Armored Exoskeleton location. 22211_ Slug penetrates P-80 Master. 22211_ Slug penetrates Wall. 22212_ Penetrated by Slug. 22212_ R-10 Processor collects Adv. Remote Datajack. 22213_ 0b10 Decoder Chip [Generic] destroyed. 22213_ Critical hit (Blast). 22213_ Penetrated by Slug. Map ----- +----------------------------------------------------+ | ##/############# ###^^^# """ ""# ## | | # " ""# ## | | # T"# ## | | + ""# ## | | # " ""# * = ## | | ##+########## #""" ""# ## | | ## # """ ""# ## | | ## # " "# # | | ## h # ############## | | ## # ############## | | " " ## ######################### | | ""G"" ##!! ######################### | | ##!! h # " ################ | | ## # """ ################ | | ############# # """ ################ | | ### # p # " ################ | | ### # # ################# | | ### " k # up + ################# | | ### """ RR% # ################# | | ### """ # # # """" | | ### " # # # BB """" | | ### # ########## BB """" """" | | ### # ^ """" " | | ############# ^ """ " "< | | ############# p k % u^u """ " "" | | ############# w pp @^ ! """ " | | ##############/#/############;+### BB """" """" | | ######## # %% """" | | ######## # % %% """" | | ######## "" # %%% ################# | | ######## "" # ################# | | ######## """""" # # ############### | | ######## """""" / # % ############# | | ######## "" # % ############# | | ######## " # #############! | | ######## # ############# | | ######## # % ############ | | ######## # ############# | | ######## # ################# | | ######################/################ | | ###################### ################ | | ###################### ################ = | | ###################### ################ | | ###################### %%!!%!=*/ | | ###################### ########## | | ###################### % ################# | | ##### / | | ##### ### | | ##### ########## !##########/###### | | ##### #################### ## | +----------------------------------------------------+ Best States ------------- Heat Dissipation 98 Energy Generation 50 Energy Capacity 670 Matter Stores 597 Matter Capacity 800 Sight Range 23 Terrain Scan Range 16 Terrain Scan Density 85 Jamming Range 12 Cloak Strength 3 Power Amplification 20 Additional Mass Support 9 Armor Coverage 600 Resistance: TH 30 Core Shielding 20 Power Shielding 90 Weapon Cycling 20 Evasion (%) 77 Targeting Accuracy 14 Melee Accuracy 8 Launcher Accuracy 20 Core Analysis 6 Armor Integrity Analysis 40 Particle Charging 30 Salvage Targeting 4 Offensive Hacking 55 Defensive Hacking 24 Authchip Count 4 Item Schematics ----------------- Imp. Assault Rifle | -8/Materials | Scanalyzed Hpw. Shock Rifle | -7/Zion | Archive Imp. Medium Armor Plating | -7/Zion | Archive Weapon Cycler | -7/Zion | Archive Magnetic Acceleration Cannon | -7/Zion | Archive Gravmag System | -7/Zion | Archive Matter Compressor | -7/Zion | Archive Remote Datajack | -7/Zion | Archive Hyp. Coil Gun | -7/Zion | Archive Imp. Thermal Shield | -7/Zion | Archive Mak. System Shield | -7/Zion | Archive Hvy. Flak Cannon | -7/Zion | Archive Power Maul | -7/Zion | Archive Focal Shield | -7/Zion | Archive Fusion Compressor | -7/Zion | Archive Mak. Light Armor Plating | -7/Zion | Archive Hvy. Linear Accelerator | -6/Factory | Scanalyzed Fusion Bomb Launcher | -6/Factory | Scanalyzed Combat Drone Bay | -6/Data Miner | Free Lgt. Regenerative Plating | -6/Data Miner | Free Enh. Armored Leg | -6/Data Miner | Free Exp. Heat Sink | -6/Data Miner | Free Tesla Bomb Launcher | -6/Data Miner | Free Imp. Gyrokinetic Inverter | -6/Data Miner | Free Adv. Cryofiber Web | -6/Data Miner | Free Railgun | -6/Data Miner | Free Arm. Heavy Treads | -6/Data Miner | Free Centrium Heavy Armor Plating | -5/Factory | Hacked Impulse Thruster Array | -5/Factory | Hacked Assault Drone Bay | -5/Zhirov | Free Exp. Optical Array | -5/Zhirov | Free Imp. Arc Thrower | -5/Zhirov | Free Robot Schematics ------------------ O-16 Technician | -9/Materials | Hacked M-28 Smith | -7/Zion | Archive G-47 Trooper | -7/Zion | Archive B-48 Gladiator | -7/Zion | Archive D-83 Annihilator | -7/Zion | Archive A-02 Transporter | -6/Factory | Hacked A-15 Conveyor | -6/Data Miner | Free Y-54 Guardian | -6/Data Miner | Free Y-64 Sentinel | -6/Data Miner | Free M-22 Extractor | -6/Data Miner | Free A-27 Freighter | -6/Data Miner | Free H-66 Slayer | -6/Data Miner | Free R-10 Processor | -6/Data Miner | Free O-32 Director | -4/Factory | Hacked Fabricated ------------ O-16 Technician | x1 | -7/Factory O-16 Technician | x1 | -7/Factory O-16 Technician | x1 | -7/Factory D-83 Annihilator | x1 | -6/Factory D-83 Annihilator | x1 | -6/Factory M-28 Smith | x1 | -6/Factory Hvy. Linear Accelerator | x1 | -5/Factory D-83 Annihilator | x1 | -5/Factory H-66 Slayer | x2 | -4/Factory D-83 Annihilator | x1 | -4/Factory | Authchip H-66 Slayer | x2 | -3/Research | Authchip H-66 Slayer | x2 | -3/Research | Authchip Y-64 Sentinel | x2 | -3/Research | Authchip Alien Tech Used ----------------- Integrated Dissipator Transdimensional Reconstructor Achievements -------------- Special Delivery Challenges ------------ None Game ------ Seed WaveCooledUnit Manual? 0 Play Time 08:06:13 Cumulative 252.2 hours Start 2024.04.17 @ 22:35:16 End 2024.04.19 @ 02:10:24 Sessions 5 Manual Loads 0 Difficulty Rogue Special Mode None Game No. 102 Rogue 102 Adventurer 0 Explorer 0 Win Type - Total 1 Types 0/0/1/0/0/0/0/0/0 Lore% 64 Gallery% 70 Achievement% 58 Wizard Run 0 Options --------- Layout 0 ASCII 0 Keyboard 1 Movement Arrows Keybinds 0 Fullscreen 1 Font 12/Proggy Map View 83x54 Zoom Use 0% Tactical HUD 1 Map Filters NONE Filters NONE Steam 0 RUN: 873da004-c903-4964-b5af-d12ef80e2986